Cogmind - Beta 11 X4 @@@ ROGUE MODE // 2021.05.30 @ 19:17:29 Player: Terminus Result: Self-destructed Performance ------------- Evolutions (9) 4500 Regions Visited (39) 7800 Robots Destroyed (946) 4730 Value Destroyed (48336) 48336 Prototype IDs (70) 1400 Alien Tech Used (7) 1400 Bonus (31157) 31157 TOTAL SCORE: 99323 Bonus ------- Triggered High Security 500 High Alert Combat Kills 18410 Follower Combat Kills 1718 Network Hubs Disabled 400 Met Imprinter 300 Met Zhirov 300 Built Enhanced Grunts 300 Met R17 at Cetus 500 Used Core Reset Matrix 3000 Scanned by Researcher 500 Destroyed MAIN.C Guards 500 Met MAIN.C 5000 Destroyed MAIN.C Shell 5000 Friendly Fire -5271 Cogmind --------- Core Integrity 710/1600 Matter 300/300 Energy 980/980 System Corruption 91% Temperature Cool (77) Movement Treading (260) Ox1 Location -1/Command Parts ------- > --- POWER (3) -------- Zero-point Reactor Zero-point Reactor > --- PROPULSION (4) --- Centrium Heavy Treads > --- UTILITY (14) ----- Huge Storage Unit Experimental Energy Well Advanced Targeting Computer Experimental Armor Integrity Analyzer > --- WEAPON (4) ------- (None) > --- INVENTORY (25) --- Experimental Energy Well (215) Experimental Energy Well (0) Experimental Matter Compressor (500) Long-range Tractor Beam Transdimensional Reconstructor Transdimensional Reconstructor Tesla Bomb Launcher Tesla Bomb Launcher Peak State ------------ > --- POWER ------------ Zero-point Reactor Vortex Chain Reactor > --- PROPULSION ------- Experimental Biometal Heavy Treads Enhanced Armored Heavy Treads > --- UTILITY ---------- Advanced Cooling System Experimental Cooling System Coolant Network Huge Storage Unit Experimental Energy Well Advanced Targeting Computer Advanced Targeting Computer Experimental Target Analyzer Experimental Armor Integrity Analyzer Heavy Regenerative Plating Thermal Barrier AEGIS Remote Shield > --- WEAPON ----------- Cooled Nova Cannon Cooled Nova Cannon Disintegrator > --- INVENTORY -------- Zero-point Reactor Zero-point Reactor Zero-point Reactor Centrium Heavy Treads Centrium Heavy Treads Experimental Energy Well Experimental Energy Well Experimental Energy Well Experimental Matter Compressor Advanced Weapon Cycler Medium Regenerative Plating EM Dispersion Field AEGIS Remote Shield Long-range Tractor Beam Transdimensional Reconstructor Transdimensional Reconstructor Sigix Quantum Sheargun Sigix Quantum Sheargun Sigix Quantum Sheargun Null Cannon Hypervelocity Multirail Tesla Bomb Launcher Tesla Bomb Launcher [Rating: 249] Favorites ----------- Power Vortex Chain Reactor Engine Reinforced Deuterium Engine Power Core Enhanced Nuclear Core Reactor Vortex Chain Reactor Propulsion Light Treads Treads Light Treads Hover Unit Cooled Aerolev Unit Utility Huge Storage Unit Device Experimental Sensor Array Storage Huge Storage Unit Processor Advanced Targeting Computer Hackware Improved Hacking Suite Protection Medium Regenerative Plating Weapon Flak Gun Energy Gun Sigix Quantum Sheargun Energy Cannon Cooled Nova Cannon Ballistic Gun Flak Gun Ballistic Cannon Tri-rail Accelerator Launcher Tesla Bomb Launcher Special Weapon Remote Datajack Impact Weapon Core Stripper Slashing Weapon Katana Piercing Weapon CR-A16's Pointy Stick Build | -11 -10 -10 -9 -9 -9 -8 -8 -8 -7 -7 -7 -7 -6 -6 -6 -6 -6 -6 -6 -6 -5 -5 -5 -5 -5 -5 -4 -4 -4 -4 -4 -3 -3 -3 -2 -2 -2 -1 -1 ------- Run | Scr Mat Min Mat Min Exi Min Mat Sto Fac Low Low Zio Pro Fac Was Fac Ext Cet Arc Hub Fac Was Fac Upp Upp War Pro Fac Upp Upp Zhi Pro Res Qua Res Tes Sec Acc Com Slots Evolved 18 | . . . 2 . . . 2 . 2 . . . . 2 . . . . . . 2 . . . . . . 2 . . . . 2 . 2 . . 2 . Power 2 | . . . . . . . . . . . . . . . . . . . . . . . . . . . . . . . . . . . 1 . . 1 . Propulsion 2 | . . . . . . . 1 . 1 . . . . . . . . . . . . . . . . . . . . . . . . . . . . . . Utility 12 | . . . 1 . . . 1 . 1 . . . . 1 . . . . . . 2 . . . . . . 2 . . . . 2 . 1 . . 1 . Weapon 2 | . . . 1 . . . . . . . . . . 1 . . . . . . . . . . . . . . . . . . . . . . . . . Parts Attached 765 | 6 10 3 27 . . . 19 16 88 8 2 3 . 12 6 8 16 27 5 30 13 . 28 5 4 8 2 36 4 6 4 6 9 23 30 71 33 23 174 Power 46 | 1 . . 3 . . . . 1 4 1 . . . 2 1 . . 3 . . 1 . 1 . . 1 . 4 . . . . . 3 4 4 2 3 7 Engine 12 | 1 . . 3 . . . . 1 3 1 . . . 2 . . . . . . . . . . . . . 1 . . . . . . . . . . . Core 1 | . . . . . . . . . 1 . . . . . . . . . . . . . . . . . . . . . . . . . . . . . . Reactor 33 | . . . . . . . . . . . . . . . 1 . . 3 . . 1 . 1 . . 1 . 3 . . . . . 3 4 4 2 3 7 Propulsion 61 | 2 2 . 4 . . . 6 5 12 1 . . . 1 2 . . 3 . . 1 . 2 . . . . 2 . . . . 1 4 2 5 . . 6 Treads 60 | 2 2 . 4 . . . 6 4 12 1 . . . 1 2 . . 3 . . 1 . 2 . . . . 2 . . . . 1 4 2 5 . . 6 Leg . | . . . . . . . . . . . . . . . . . . . . . . . . . . . . . . . . . . . . . . . . Wheel . | . . . . . . . . . . . . . . . . . . . . . . . . . . . . . . . . . . . . . . . . Hover 1 | . . . . . . . . 1 . . . . . . . . . . . . . . . . . . . . . . . . . . . . . . . Flight . | . . . . . . . . . . . . . . . . . . . . . . . . . . . . . . . . . . . . . . . . Utility 409 | 1 5 1 5 . . . 6 1 40 2 . . . 3 1 4 6 16 4 19 6 . 12 3 4 5 . 26 4 4 4 6 6 14 16 30 21 14 120 Device 286 | . 2 1 2 . . . 1 . 19 1 . . . . . 2 3 8 2 10 3 . 10 3 3 2 . 20 4 4 3 6 5 13 15 22 11 9 102 Storage 25 | 1 3 . 1 . . . 1 . 2 . . . . . . . . 1 . . . . . . . . . . . . . . . 1 . 2 . 1 12 Processor 16 | . . . . . . . . . 1 . . . . 1 1 1 . . . . . . . . . . . . . . . . 1 . . 1 4 2 4 Hackware 14 | . . . . . . . 2 . 2 . . . . 1 . . . 1 . . 2 . . . . 1 . 1 . . . . . . . 1 3 . . Protection 68 | . . . 2 . . . 2 1 16 1 . . . 1 . 1 3 6 2 9 1 . 2 . 1 2 . 5 . . 1 . . . 1 4 3 2 2 Artifact . | . . . . . . . . . . . . . . . . . . . . . . . . . . . . . . . . . . . . . . . . Weapon 249 | 2 3 2 15 . . . 7 9 32 4 2 3 . 6 2 4 10 5 1 11 5 . 13 2 . 2 2 4 . 2 . . 2 2 8 32 10 6 41 Energy Gun 23 | . . 1 . . . . 2 . . . . . . . . . . . . . . . . . . . . . . . . . . . . 1 4 . 15 Energy Cannon 39 | . . . . . . . . 1 3 . . . . . . . 1 . . 1 . . . . . 1 . . . . . . . . 1 6 2 4 19 Ballistic Gun 96 | 2 2 . 11 . . . 4 6 18 2 1 3 . 3 1 3 7 3 1 7 5 . 8 . . . . . . . . . . . . 5 . 2 2 Ballistic Cannon 40 | . . . 1 . . . . . . . . . . . . . . . . . . . 2 1 . 1 1 3 . 1 . . 1 2 5 19 3 . . Launcher 23 | . 1 1 3 . . . 1 1 1 1 1 . . 1 . . . . . . . . . 1 . . 1 . . 1 . . 1 . 2 . 1 . 5 Special Weapon 5 | . . . . . . . . . . . . . . 1 . . 2 1 . . . . . . . . . 1 . . . . . . . . . . . Impact Weapon 1 | . . . . . . . . . . . . . . . . . . . . . . . . . . . . . . . . . . . . 1 . . . Slashing Weapon 12 | . . . . . . . . 1 10 1 . . . . . . . . . . . . . . . . . . . . . . . . . . . . . Piercing Weapon 10 | . . . . . . . . . . . . . . 1 1 1 . 1 . 3 . . 3 . . . . . . . . . . . . . . . . Special Melee Weapon . | . . . . . . . . . . . . . . . . . . . . . . . . . . . . . . . . . . . . . . . . Unidentified Prototypes 65 | . . . 1 . . . 2 4 4 . . . . 1 . . . 4 . . . . 1 . . 3 . 1 . . 3 . 1 3 . 17 4 3 13 Corrupted Parts 14 | . . . . . . . . . . . . . . . . . . 3 . . . . . . . . . . . . . . . . . . . . 11 System Corruption 64 | . . . . . . . . . . . . . . . . . . 5 . . . . . . . . . . . . . . . . . . . . 59 Parts Lost 72 | . 2 . 1 . . . 2 1 7 1 . . . . . 2 1 1 1 . 6 . . . . . . 1 . . . . . 1 . 11 4 2 28 Power 12 | . . . 1 . . . . . . 1 . . . . . . . 1 . . 1 . . . . . . 1 . . . . . . . 2 1 . 4 Propulsion 6 | . 1 . . . . . . . . . . . . . . . . . . . 1 . . . . . . . . . . . . . . 1 . . 3 Utility 31 | . . . . . . . 1 . 4 . . . . . . 1 . . . . . . . . . . . . . . . . . 1 . 5 3 2 14 Weapon 23 | . 1 . . . . . 1 1 3 . . . . . . 1 1 . 1 . 4 . . . . . . . . . . . . . . 3 . . 7 Highest Loss Streak 24 | . 1 . 1 . . . 1 1 2 1 . . . . . 1 1 1 1 . 6 . . . . . . 1 . . . . . 1 . 4 2 2 24 Average Slot Usage (%) 87 | . 98 100 99 100 100 100 98 99 99 99 100 97 100 98 92 85 85 85 86 85 87 88 86 76 76 76 76 77 78 78 77 78 80 79 81 82 76 79 76 Engine 2 | . 14 14 10 11 11 11 9 9 3 2 7 7 7 5 2 . . . . . . . . . . . . . . . . . . . . . . . . Reactor 3 | . . . . . . . . . . . . . . . 3 6 6 5 6 6 5 5 4 5 5 5 5 3 5 5 5 5 4 4 7 7 4 7 8 Treads 16 | . 27 28 22 22 22 22 27 26 29 30 30 30 30 26 18 13 13 12 13 13 11 11 11 11 11 11 11 10 10 10 10 10 9 8 7 7 8 8 7 Device 13 | . 12 14 16 11 11 11 8 9 13 14 15 15 15 13 13 12 11 10 6 9 9 5 5 5 5 5 5 10 10 10 9 10 14 17 20 18 13 11 18 Storage 6 | . 14 14 11 11 11 11 9 9 7 7 7 7 7 6 6 6 6 6 6 6 5 5 5 5 5 5 5 5 5 5 5 5 4 4 4 4 4 5 6 Processor 10 | . . . . . . . . . 7 7 7 7 7 6 13 13 13 13 13 13 11 11 11 11 11 11 11 10 10 10 10 10 14 14 13 14 15 19 16 Hackware 7 | . . . . . . . 8 9 6 . . . . 6 6 6 6 6 6 6 16 17 17 17 17 17 17 21 21 21 21 21 19 15 13 10 8 6 2 Protection 4 | . . . 5 11 11 11 8 8 1 7 7 7 7 5 . . 1 1 5 2 1 5 5 5 5 5 5 4 5 5 5 5 4 4 3 5 4 4 3 Energy Cannon 1 | . . . . . . . . . . . . . . . . . . . . . . . . . . . . . . . . . . . . . 2 1 7 Ballistic Gun 13 | . 27 18 31 33 33 33 26 26 20 22 21 20 23 24 24 25 24 22 26 24 22 23 20 . . . . . . . . . . . . 1 4 2 1 Ballistic Cannon 2 | . . . . . . . . . . . . . . . . . . . . . . . . 10 11 11 10 9 10 9 10 10 9 9 7 7 3 . . Naked Turns . | . . . . . . . . . . . . . . . . . . . . . . . . . . . . . . . . . . . . . . . . Heaviest Build 222 | 13 49 51 67 67 67 67 108 108 110 123 119 117 117 121 115 121 122 125 126 131 126 121 135 135 135 135 135 137 137 137 137 137 142 147 169 194 201 215 222 Greatest Support 180 | 40 40 40 40 40 40 40 65 67 100 83 83 83 83 91 140 140 140 160 160 160 160 160 160 160 160 160 160 160 160 160 160 160 160 160 160 180 180 180 180 Greatest Overweight (x) 2 | . 1 1 1 1 1 1 1 2 1 1 1 1 1 1 1 . . 1 . . . . . . . . . . . . . . . 1 1 1 1 1 1 Average Overweight (x) . | . . 1 1 1 1 1 1 1 . 1 1 1 1 1 . . . . . . . . . . . . . . . . . . . . . . . . . Largest Inventory Capacity 25 | 8 20 20 20 20 20 20 25 25 25 25 25 25 25 25 25 25 25 25 25 25 25 25 25 25 25 25 25 25 25 25 25 25 25 25 25 25 25 25 25 Average Capacity 24 | 7 14 20 20 20 20 20 22 25 25 25 25 25 25 25 25 25 25 25 25 25 25 25 25 25 25 25 25 25 25 25 25 25 25 25 25 25 25 25 25 Most Carried 25 | 1 11 12 20 20 20 20 25 25 25 25 24 25 25 25 25 25 25 25 25 25 25 21 25 25 25 25 25 25 24 25 25 25 25 25 25 25 25 25 25 Average Carried 23 | . 8 11 18 19 20 20 21 24 24 24 24 24 24 23 24 24 24 24 24 24 21 19 22 24 25 24 24 23 24 24 24 25 24 24 24 24 23 23 23 Final Capacity 25 | 8 20 20 20 20 20 20 25 25 25 25 25 25 25 25 25 25 25 25 25 25 25 25 25 25 25 25 25 25 25 25 25 25 25 25 25 25 25 25 25 Final Carried 25 | 1 10 12 20 20 20 20 24 25 24 24 24 25 22 25 24 24 25 25 24 25 18 21 25 25 25 25 25 24 24 25 25 25 25 25 25 25 22 24 8 Class Distribution -------------------- 17% | Scavenger-Skirmisher 14% | Scavenger-Mutant 11% | Hacker-Gunner 8% | Hacker-Mutant 8% | Hacker-Skirmisher 7% | Scavenger-Gunner 7% | Scavenger-Tank 7% | Mutant 7% | Generator-Mutant 3% | Tank 3% | Skirmisher Dominant Class ---------------- Mutant | -10/Materials Mutant | -10/Mines Scavenger-Tank | -9/Materials Scavenger-Tank | -9/Mines Scavenger-Tank | -9/Exiles Scavenger-Tank | -8/Mines Scavenger-Tank | -8/Materials Tank | -8/Storage Skirmisher | -7/Factory Scavenger-Skirmisher | -7/Lower Caves Scavenger-Skirmisher | -7/Lower Caves Scavenger-Mutant | -7/Zion Scavenger-Skirmisher | -6/Proximity Caves Scavenger-Skirmisher | -6/Factory Scavenger-Skirmisher | -6/Waste Scavenger-Skirmisher | -6/Factory Scavenger-Skirmisher | -6/Extension Scavenger-Skirmisher | -6/Cetus Scavenger-Gunner | -6/Archives Scavenger-Skirmisher | -6/Hub_04(d) Scavenger-Skirmisher | -5/Factory Scavenger-Skirmisher | -5/Waste Scavenger-Skirmisher | -5/Factory Hacker-Skirmisher | -5/Upper Caves Hacker-Skirmisher | -5/Upper Caves Hacker-Skirmisher | -5/Warlord Hacker-Skirmisher | -4/Proximity Caves Hacker-Skirmisher | -4/Factory Hacker-Skirmisher | -4/Upper Caves Hacker-Skirmisher | -4/Upper Caves Hacker-Skirmisher | -4/Zhirov Hacker-Skirmisher | -3/Proximity Caves Hacker-Gunner | -3/Research Hacker-Gunner | -3/Quarantine Hacker-Gunner | -2/Research Hacker-Gunner | -2/Testing Hacker-Mutant | -2/Section 7 Generator-Gunner | -1/Access Generator-Mutant | -1/Command Resources | -11 -10 -10 -9 -9 -9 -8 -8 -8 -7 -7 -7 -7 -6 -6 -6 -6 -6 -6 -6 -6 -5 -5 -5 -5 -5 -5 -4 -4 -4 -4 -4 -3 -3 -3 -2 -2 -2 -1 -1 ----------- Run | Scr Mat Min Mat Min Exi Min Mat Sto Fac Low Low Zio Pro Fac Was Fac Ext Cet Arc Hub Fac Was Fac Upp Upp War Pro Fac Upp Upp Zhi Pro Res Qua Res Tes Sec Acc Com Matter Collected 29397 | 268 535 58 1635 53 . . 1107 1010 2073 400 72 61 48 685 385 514 822 766 326 1390 257 183 1358 176 71 . 300 1178 328 216 . 262 278 906 1510 2677 2259 631 4599 Remotely 5985 | . . . . . . . . . . . . . . . . . . 223 166 417 . . 178 97 48 . . 457 . . . 242 . 380 773 984 . . 2020 Salvage Created 55193 | 66 639 102 1847 39 . . 1394 1865 2934 315 158 . 69 1262 1580 407 583 814 485 1884 257 638 2127 140 36 . 79 803 157 65 . 444 441 96 1287 2519 7513 1859 20289 Parts 1940 | 4 54 2 134 6 . . 101 91 166 15 11 . 4 63 29 15 25 50 24 105 17 11 114 7 1 . 5 29 5 7 . 10 14 3 65 84 281 77 311 Haulers Intercepted 40 | . 2 . 5 . . . 3 6 3 . . . . 3 . 2 . . . 2 . . 6 . . . . 1 . . . . 2 . . 3 2 . . Recyclers Shooed 22 | . . . 3 . . . . 2 2 . . . . 3 . 2 1 . . 1 . . 6 . . . . . . . . . . . . 1 . . 1 Parts Field Recycled . | . . . . . . . . . . . . . . . . . . . . . . . . . . . . . . . . . . . . . . . . Retrieved Matter . | . . . . . . . . . . . . . . . . . . . . . . . . . . . . . . . . . . . . . . . . Parts Self-Destructed 52 | . . . . . . . . . . 12 9 . 4 . . . . . . . . . . 6 1 . 5 . 5 6 . 4 . . . . . . . Prevented . | . . . . . . . . . . . . . . . . . . . . . . . . . . . . . . . . . . . . . . . . Kills | -11 -10 -10 -9 -9 -9 -8 -8 -8 -7 -7 -7 -7 -6 -6 -6 -6 -6 -6 -6 -6 -5 -5 -5 -5 -5 -5 -4 -4 -4 -4 -4 -3 -3 -3 -2 -2 -2 -1 -1 ------- Run | Scr Mat Min Mat Min Exi Min Mat Sto Fac Low Low Zio Pro Fac Was Fac Ext Cet Arc Hub Fac Was Fac Upp Upp War Pro Fac Upp Upp Zhi Pro Res Qua Res Tes Sec Acc Com Combat Hostiles Destroyed 699 | . 17 5 41 3 . . 29 24 39 6 4 . 3 14 6 . 8 9 4 23 4 . 21 8 1 . 6 22 5 8 . 8 5 8 22 36 83 19 208 Melee 2 | . . . . . . . . 1 . . . . . . . . . . . . . . 1 . . . . . . . . . . . . . . . . Guns 518 | . 15 1 32 3 . . 26 21 39 4 . . 3 14 6 . 8 9 4 23 4 . 19 . . . . . . . . . . . . 5 76 19 187 Cannons 126 | . . . 1 . . . . . . . . . . . . . . . . . . . 1 4 1 . 2 20 5 5 . 8 5 8 16 30 3 . 17 AOE 43 | . 2 4 8 . . . 3 2 . 2 4 . . . . . . . . . . . . 4 . . 4 2 . 3 . . . . 4 . 1 . . Classes Destroyed 30 | 1 5 2 3 . . . 2 2 1 2 . . . . 1 1 . . . . . . . . . . . . . . . 1 . . . 4 3 . 2 Worker 51 | . . 1 3 . . . . 2 7 . . . . 1 . 1 . . . 7 . . 1 . . . . 1 . . . . . . 6 . 2 . 19 Builder 21 | . . . . . . . 2 2 2 . . . . . . . . . . 3 . . 1 . . . . 1 . . . . . . 4 3 3 . . Tunneler 5 | . . . . . . . . 1 . . . . . 2 . . . . . 1 . . . . . . . 1 . . . . . . . . . . . Hauler 40 | . 2 . 5 . . . 3 6 3 . . . . 3 . 2 . . . 2 . . 6 . . . . 1 . . . . 2 . . 3 2 . . Recycler 29 | 1 . . 2 . . . 3 3 6 . . . . 1 . 1 . . . . . . 2 . . . . 1 . . . . 1 . 2 2 . 1 3 Carrier 12 | . . . . . . . . . . . . . . . . . . . . . . . . . . . . . . . . . . . . . . . 12 Minesweeper 1 | . . . . . . . . . . 1 . . . . . . . . . . . . . . . . . . . . . . . . . . . . . Mechanic 10 | . . . 1 . . . . . . . . . . . . . . . . . . . . . . . . 1 . . . . . . . . . . 8 Operator 20 | . 1 . 2 . . . . 1 2 . . . . 1 . . 1 . 5 1 1 . . . . . . . . . . . . . 1 1 3 . . Watcher 48 | . 1 . 5 . . . 3 2 4 . . . . 3 . . 1 1 . 3 . . 6 . . . . . . . . . 3 1 4 1 5 . 5 Swarmer 104 | . 6 . 17 3 . . 15 . 3 3 . . 3 4 . . 1 . . . . . 5 4 . . 5 5 1 8 . . 3 . 4 4 . . 10 Saboteur 16 | . . . . . . . . . . . . . . . . . . . . . . . . . . . . . . . . . . . . . 4 . 12 Grunt 270 | . 11 3 16 . . . 7 15 16 3 4 . . 5 . . 3 2 . 8 . . 3 2 . . . 9 2 . . 5 1 . . 10 46 8 91 Brawler 20 | . . . 1 . . . . . 1 . . . . . . . . . . 1 . . . 1 . . . . . . . . . . . . 4 . 12 Duelist 30 | . . . . . . . . 1 1 . . . . . . . . 1 . 2 . . . . . . . 2 . . . . . . . . 3 . 20 Protector 12 | . . . . . . . . . . . . . . . . . . . . . . . . . . . . . . . . . . . . . 1 1 10 Researcher 4 | . . . . . . . . . . . . . . . . . . . . . . . . . . . . . . . . . . . . 2 2 . . Sentry 62 | . . . 7 . . . 6 8 9 . . . . 2 . . 2 . 4 7 . . . 1 . . . . . . . . 1 . 2 . 4 2 7 Specialist 3 | . . . . . . . . . . . . . . . . . . . . . . . . . . . . . . . . . . . . 3 . . . Hunter 34 | . . . . . . . 1 . 2 . . . . . . . 2 . . 3 2 . 1 . 1 . . 2 . . . . . . 4 1 2 3 10 Programmer 99 | . . . . . . . . . 7 . . . . 3 . . . . . 2 2 . 11 . . . 1 4 2 . . . . . 12 14 13 3 25 Q-Series 6 | . . . . . . . . . . . . . . . . . . . . . . . . . . . . . . . . . . . . 2 2 2 . Compactor 6 | . . . . . . . . . . . . . . . 6 . . . . . . . . . . . . . . . . . . . . . . . . Cetus Guard 6 | . . . . . . . . . . . . . . . . . . 6 . . . . . . . . . . . . . . . . . . . . . Quarantine Guard 8 | . . . . . . . . . . . . . . . . . . . . . . . . . . . . . . . . . . 8 . . . . . M Guard 2 | . . . . . . . . . . . . . . . . . . . . . . . . . . . . . . . . . . . . . . . 2 Enhanced Grunt 1 | . . . . . . . . . . . . . . . . . . 1 . . . . . . . . . . . . . . . . . . . . . Combat Programmer 2 | . . . . . . . . . . . . . . . . . . . . . . . . . . . . . . . . . . . . . . . 2 Investigator 1 | . . . . . . . . . . . . . . . . . . . . . . . . . . . . . . . . . . . . . . . 1 Striker 2 | . . . . . . . . . . . . . . . . . . . . . . . . . . . . . . . . . . . . . . . 2 Executioner 8 | . . . . . . . . . . . . . . . . . . . . . . . . . . . . . . . . . . . . . 4 . 4 Fortress 1 | . . . . . . . . . . . . . . . . . . . . . . . . . . . . . . . . . . . . 1 . . . Protovariant X 1 | . . . . . . . . . . . . . . . . . . . . . . . . . . . . . . . . . . . . 1 . . . Decomposer 2 | . . . . . . . . . . 2 . . . . . . . . . . . . . . . . . . . . . . . . . . . . . Samaritan 2 | . . . . . . . . . . 1 . . . . . . . . . . . . . . . . 1 . . . . . . . . . . . . Assembled 2 | . . 2 . . . . . . . . . . . . . . . . . . . . . . . . . . . . . . . . . . . . . Surgeon 1 | . . . . . . . . . . . . . . . . . 1 . . . . . . . . . . . . . . . . . . . . . . Thug 3 | . . . . . . . . . . . . . . . . . . . . . . . 1 . . . . . . . . 2 . . . . . . . Martyr 3 | . . . . . . . . . . . . . . . . 2 . . . . . 1 . . . . . . . . . . . . . . . . . Mutant 1 | . . . . . . . . . . . . . . . . . . . . . . . . . . . . . . . . 1 . . . . . . . Best Kill Streak 19 | 1 6 3 5 3 . . 9 6 8 3 4 . 3 4 4 1 2 5 3 8 4 . 5 4 1 . 5 8 2 4 . 5 3 2 8 8 9 8 19 Combat Bots Only 17 | . 5 2 5 3 . . 6 5 6 3 4 . 3 4 4 . 2 4 1 6 4 . 5 4 1 . 5 7 2 4 . 5 3 2 6 7 9 8 17 Max Kills in Single Turn 8 | 1 2 1 3 2 . . 3 4 2 2 3 . 1 3 1 1 2 2 1 8 1 1 2 3 1 . 3 3 1 1 . 1 1 1 4 2 2 3 4 Gunslinging 1 | . 1 . 1 1 . . 1 . . . . . . 1 . . 1 1 . . . . 1 . . . . . . . . . . . . . . 1 1 Exploded 4 | . 2 1 3 . . . 2 2 . 2 3 . . . . . . . . . . . . 3 . . 3 2 . 1 . . . . 4 . 1 . . Melee 1 | . . . . . . . . 1 . . . . . . . . . . . . . . 1 . . . . . . . . . . . . . . . . Uniques/NPCs Destroyed 3 | . . . . . . . . . . . . . . . . . . 2 . . . . . . . . . . . . . . . . . . . . 1 A7 (-6/Cetus) Revision 17 (-6/Cetus) MAIN.C Shell (-1/Command) Combat | -11 -10 -10 -9 -9 -9 -8 -8 -8 -7 -7 -7 -7 -6 -6 -6 -6 -6 -6 -6 -6 -5 -5 -5 -5 -5 -5 -4 -4 -4 -4 -4 -3 -3 -3 -2 -2 -2 -1 -1 -------- Run | Scr Mat Min Mat Min Exi Min Mat Sto Fac Low Low Zio Pro Fac Was Fac Ext Cet Arc Hub Fac Was Fac Upp Upp War Pro Fac Upp Upp Zhi Pro Res Qua Res Tes Sec Acc Com Damage Taken 38070 | . 540 212 921 20 . . 832 798 2806 193 55 . 67 474 . 330 897 687 192 1978 922 . 1687 133 81 . 70 1384 83 229 . 414 163 1568 1776 4778 2424 979 10377 Core 2516 | . 47 12 122 6 . . 31 107 335 . . . . 13 . . 114 52 24 169 87 . . 18 . . . 91 . 24 . 25 . 45 49 189 66 44 846 Absorbed by Shields 10205 | . . . . . . . . . . . . . . . . . 7 40 . . . . . . . . . . . . . . . . . . 1256 1014 7888 Reduced by Siege Mode 2177 | . . . . . . . . . . . . . . . . . . 62 . 113 28 . 111 6 . . . 129 5 12 . 45 . 196 144 387 157 64 718 Core Remaining (%) 72 | 100 . 76 . . . 68 . 74 . . . . 52 . . . . . . 56 . . . . . . 89 . . . . 87 . 96 . . 31 . . Volleys Fired 2094 | 2 67 17 97 3 . . 76 82 124 12 4 . 3 30 17 5 68 40 15 51 8 7 53 11 2 2 5 48 18 13 . 10 17 50 63 121 395 45 513 Largest 4 | 2 2 2 3 3 . . 3 3 3 3 1 . 3 4 4 4 4 4 4 4 4 4 4 2 2 1 2 2 2 2 . 2 2 2 2 3 3 4 4 Hottest 430 | 40 40 70 112 75 . . 75 75 84 84 36 . 84 112 112 112 112 112 112 112 112 112 120 120 120 90 120 120 120 120 . 120 120 120 120 183 300 350 430 Shots Fired 4254 | 4 133 22 272 9 . . 221 244 357 31 4 . 9 113 65 23 112 101 54 177 27 25 201 19 4 2 7 82 36 16 . 19 34 79 116 201 417 143 875 Gun 3235 | 4 132 10 262 9 . . 219 243 352 30 . . 9 112 65 23 65 83 54 176 27 25 193 . . . . . . . . . . . . 37 329 132 644 Cannon 906 | . . . 4 . . . . . 5 . . . . . . . 14 . . 1 . . 8 16 4 2 5 81 36 12 . 19 34 79 108 164 82 11 221 Launcher 60 | . 1 12 6 . . . 2 1 . 1 4 . . . . . . . . . . . . 3 . . 2 . . 4 . . . . 8 . 6 . 10 Special 53 | . . . . . . . . . . . . . . 1 . . 33 18 . . . . . . . . . 1 . . . . . . . . . . . Kinetic 3195 | 4 132 5 262 9 . . 219 243 352 30 . . 9 112 65 23 65 83 54 176 27 25 201 16 4 . 5 81 36 12 . 19 34 79 108 196 222 29 258 Thermal 349 | . . 5 4 . . . . . 5 . . . . . . . 14 18 . 1 . . . . . 2 . . . . . . . . . 5 65 11 219 Explosive 36 | . 1 12 6 . . . 2 1 . 1 4 . . . . . . . . . . . . 3 . . 2 . . 4 . . . . . . . . . Electromagnetic 26 | . . . . . . . . . . . . . . . . . . . . . . . . . . . . . . . . . . . 8 . 6 . 12 Slashing 613 | . . . . . . . . . . . . . . . . . . . . . . . . . . . . . . . . . . . . . 124 103 386 Robot Hit Streak 75 | 4 9 9 16 2 . . 22 20 32 11 . . 5 11 12 10 15 45 25 57 18 27 26 15 5 . 14 36 20 5 . 20 21 22 42 45 60 74 75 Robot Miss Streak 11 | . 2 1 3 3 . . 6 3 4 7 . . 9 8 6 11 6 6 6 7 6 6 6 2 2 . 2 3 3 1 . 1 6 2 5 4 3 3 3 Penetration Max 4 | . . . . . . . . . . . . . . . . . . . . . . . . . . . . . . . . . . . . 1 3 1 4 Secondary Targets 48 | . 3 . 2 2 . . 7 3 4 2 . . . 1 3 . 1 5 . . . . 3 . . . . . . . . . . . . . . 7 5 Max Gunslinging Chain 2 | . 1 . 1 2 . . 1 1 1 1 . . . 1 1 . 1 1 . . . . 1 . . . . . . . . . . . . . . 1 1 Shots Hit Robots 3257 | 4 90 15 175 3 . . 146 170 277 23 . . 6 97 62 20 88 100 45 145 26 21 175 15 3 . 6 65 11 10 . 16 28 52 86 156 309 113 699 Core Hits 2842 | 2 35 11 74 3 . . 58 69 163 37 6 . 10 131 76 34 66 120 83 227 34 25 181 14 3 . 8 60 10 11 . 19 24 50 73 111 251 65 698 Critical Kills 292 | . . . 1 . . . . 1 1 . . . . . . . . . . . . . . . . . . . . . . . . . . 9 86 7 187 Critical Parts Destroyed 483 | . . . . . . . . . 1 . . . . . . . . . . . . . . . . . . . . . . . . . . 21 124 31 306 Critical Strikes 854 | . . . 1 . . . . 1 2 . . . . . . . . . . . . . . 1 . . 2 5 1 . . 1 1 3 4 52 221 46 513 Meltdown 1 | . . . . . . . . . . . . . . . . . . . . . . . . . . . . . . . . . . . . . . . 1 Destroy 796 | . . . 1 . . . . 1 2 . . . . . . . . . . . . . . . . . . . . . . . . . . 34 221 39 498 Blast 36 | . . . . . . . . . . . . . . . . . . . . . . . . 1 . . 2 5 1 . . 1 1 3 4 18 . . . Corrupt 1 | . . . . . . . . . . . . . . . . . . . . . . . . . . . . . . . . . . . . . . . 1 Sever 20 | . . . . . . . . . . . . . . . . . . . . . . . . . . . . . . . . . . . . . . 7 13 Melee Attacks 74 | . . . . . . . . 2 34 . . . . 4 1 3 . 8 . 7 . . 13 . . . . . . . . . . . . 2 . . . Kinetic 2 | . . . . . . . . . . . . . . . . . . . . . . . . . . . . . . . . . . . . 2 . . . Impact . | . . . . . . . . . . . . . . . . . . . . . . . . . . . . . . . . . . . . . . . . Slashing 36 | . . . . . . . . 2 34 . . . . . . . . . . . . . . . . . . . . . . . . . . . . . . Piercing 36 | . . . . . . . . . . . . . . 4 1 3 . 8 . 7 . . 13 . . . . . . . . . . . . . . . . Sneak Attacks 16 | . . . . . . . . . 4 . . . . . . 3 . 8 . . . . . . . . . . . . . . . . . 1 . . . Combat Hostiles . | . . . . . . . . . . . . . . . . . . . . . . . . . . . . . . . . . . . . . . . . Follow-up Attacks . | . . . . . . . . . . . . . . . . . . . . . . . . . . . . . . . . . . . . . . . . Damage Inflicted 101234 | 38 1027 539 3418 73 . . 2803 3191 5557 662 198 . 82 2383 1831 885 1239 2886 1185 4217 484 635 4719 1395 106 . 785 5197 747 757 . 1258 1424 3612 5548 7214 8684 3328 23127 Guns 61452 | 38 936 97 2921 73 . . 2498 2942 5168 514 . . 82 2334 1831 571 1213 2152 1185 3600 476 635 3974 . . . . . . . . . . . . 410 7458 3298 17046 Cannons 31159 | . . . 67 . . . . . . . . . . . . . 26 . . . . . 386 904 106 . 394 4462 747 307 . 1234 1424 3612 4544 6780 451 . 5715 Explosions 6405 | . 79 437 430 . . . 302 217 . 148 198 . . . . . . . . 552 . . . 491 . . 391 709 . 450 . . . . 920 . 748 . 333 Melee 1514 | . . . . . . . . . 364 . . . . . . 304 . 586 . . . . 260 . . . . . . . . . . . . . . . . Ramming 556 | . 12 5 . . . . 3 32 25 . . . . 49 . 10 . . . 65 8 . 99 . . . . 26 . . . 24 . . 84 24 27 30 33 Kinetic 67888 | 38 936 60 2939 73 . . 2498 2942 5168 514 . . 82 2334 1831 571 1213 2152 1185 3600 476 635 4360 904 106 . 394 4462 747 307 . 1234 1424 3612 4544 6951 2937 343 6316 Thermal 7390 | . . 37 49 . . . . . . . . . . . . . 26 148 . 77 . . . . . . . 709 . . . . . . 73 239 347 . 5685 Explosive 3143 | . 79 437 430 . . . 302 217 . 148 198 . . . . . . . . . . . . 491 . . 391 . . 450 . . . . . . . . . Electromagnetic 2433 | . . . . . . . . . . . . . . . . . . . . 475 . . . . . . . . . . . . . . 847 . 748 . 363 Impact . | . . . . . . . . . . . . . . . . . . . . . . . . . . . . . . . . . . . . . . . . Slashing 18674 | . . . . . . . . . 364 . . . . . . . . . . . . . . . . . . . . . . . . . . . 4625 2955 10730 Piercing 1150 | . . . . . . . . . . . . . . . . 304 . 586 . . . . 260 . . . . . . . . . . . . . . . . Highest Corruption 91 | . . . . . . . . 2 12 12 12 12 . 3 32 32 32 37 37 49 2 2 9 9 9 9 . 2 2 2 2 2 . . 9 23 25 8 91 Average Corruption 16 | . . . . . . . . 1 4 12 12 12 . 2 20 32 32 36 37 37 1 2 5 9 9 9 . 1 2 2 2 2 . . 6 16 9 4 30 Corruption Purged . | . . . . . . . . . . . . . . . . . . . . . . . . . . . . . . . . . . . . . . . . Effects 1659 | . . . . . . . . 2 74 54 42 5 . 14 22 58 78 51 34 117 2 4 51 25 13 1 . 7 6 3 . 6 . . 71 200 116 13 590 Message Errors 371 | . . . . . . . . . 17 10 10 3 . 5 3 15 19 7 5 21 . 3 13 6 4 . . 4 1 3 . 2 . . 20 52 31 1 116 Matter Fused 346 | . . . . . . . . . 15 14 6 . . 3 1 11 20 13 5 17 . . 11 6 3 . . . . . . . . . 23 51 32 1 114 Heat Flow Errors 148 | . . . . . . . . 1 7 6 8 2 . 3 1 2 4 . 2 18 . . 6 . 1 . . 2 . . . 2 . . 9 16 8 . 50 Energy Discharges 175 | . . . . . . . . 1 13 6 8 . . . 3 9 9 3 3 6 1 1 6 7 1 1 . . 1 . . 1 . . 7 17 13 3 55 Parts Rejected 10 | . . . . . . . . . . . . . . . . . 1 1 . 1 . . 1 . . . . . . . . . . . . 2 2 1 1 Data Loss (minor) 166 | . . . . . . . . . 10 5 6 . . 2 2 7 6 5 4 7 1 . 10 4 4 . . . 4 . . 1 . . 6 16 11 2 53 Data Loss (major) 59 | . . . . . . . . . 2 3 . . . . . 1 1 2 3 2 . . 2 2 . . . . . . . . . . 3 7 7 1 23 Misfires 59 | . . . . . . . . . 4 . . . . . . 4 1 . 1 3 . . 1 . . . . . . . . . . . 2 6 2 2 33 Alerts 24 | . . . . . . . . . 1 1 2 . . . 1 . . 1 2 5 . . . . . . . . . . . . . . . 4 . . 7 Misdirections 191 | . . . . . . . . . 2 8 2 . . . 8 9 14 14 3 23 . . . . . . . . . . . . . . . 22 5 . 81 Weapon Failures 110 | . . . . . . . . . 3 1 . . . 1 3 . 3 5 6 14 . . 1 . . . . 1 . . . . . . 1 7 5 2 57 Overload Shots 14 | . . . . . . . . . . . . . . . . . . . . . . . . . . 1 . . . . . . . . . . 3 . 10 Overflow Damage 1343 | . . 21 3 . . . . . 21 8 . . . 7 . 62 . 2 . 24 . . 48 42 . . 74 318 33 87 . 36 37 9 200 150 25 . 136 Projectiles 834 | . . . 3 . . . . . . . . . . . . . . 2 . . . . 48 4 . . 68 125 33 20 . 28 37 9 171 150 . . 136 Explosions 397 | . . 21 . . . . . . . 8 . . . . . . . . . 10 . . . 38 . . 6 193 . 67 . . . . 29 . 25 . . Melee 112 | . . . . . . . . . 21 . . . . 7 . 62 . . . 14 . . . . . . . . . . . 8 . . . . . . . Knockbacks 181 | . . . 2 . . . . . . . . . . . . . . . . 1 . . 4 2 2 . 1 27 9 4 . 10 7 3 46 63 . . . Impact 2 | . . . . . . . . . . . . . . . . . . . . 1 . . . . . . . 1 . . . . . . . . . . . Kinetic 167 | . . . 2 . . . . . . . . . . . . . . . . . . . 4 2 2 . 1 23 9 4 . 9 7 3 44 57 . . . Secondary 12 | . . . . . . . . . . . . . . . . . . . . . . . . . . . . 3 . . . 1 . . 2 6 . . . Self-Inflicted Damage 231 | . . 16 40 . . . . . . . . . . . . . . . . 102 . . . . . . . 59 . . . . . . . . . . 14 Shots 5 | . . 1 1 . . . . . . . . . . . . . . . . 1 . . . . . . . 1 . . . . . . . . . . 1 Rammed 54 | . 3 1 . . . . 1 3 3 . . . . 6 . 2 . . . 4 1 . 9 . . . . 3 . . . 1 . . 6 2 2 3 4 Targets Rammed 63 | . 3 1 . . . . 1 6 5 . . . . 7 . 3 . . . 4 1 . 9 . . . . 3 . . . 1 . . 7 2 2 3 5 Kicked . | . . . . . . . . . . . . . . . . . . . . . . . . . . . . . . . . . . . . . . . . Crushed 9 | . . . . . . . . 3 2 . . . . 1 . 1 . . . . . . . . . . . . . . . . . . 1 . . . 1 Highest Temperature 357 | . 18 2 50 28 . . 71 152 285 156 203 134 . 189 281 171 235 . 182 247 . 40 255 144 264 38 42 231 . . . 199 . 135 200 214 172 220 357 Average Temperature 58 | . 8 2 13 15 . . 13 19 83 70 90 75 . 86 147 83 99 . 79 92 . 20 66 77 134 23 22 54 . . . 47 . 51 89 81 67 88 77 Received Heat Transfer 3735 | . 207 99 285 . . . 180 405 705 54 9 . . 108 . 24 96 45 36 195 . . 45 36 12 . . 268 . . . 115 . . 18 225 164 88 316 Effects 5 | . . . . . . . . . . . . . . . . . . . . . . . 2 . . . . . . . . . . . . . . . 3 Energy Bleed 1 | . . . . . . . . . . . . . . . . . . . . . . . . . . . . . . . . . . . . . . . 1 Interference 2 | . . . . . . . . . . . . . . . . . . . . . . . 2 . . . . . . . . . . . . . . . . Short Circuit 1 | . . . . . . . . . . . . . . . . . . . . . . . . . . . . . . . . . . . . . . . 1 Damage (minor) 1 | . . . . . . . . . . . . . . . . . . . . . . . . . . . . . . . . . . . . . . . 1 Siege Activations 138 | . . . . . . . . . . . . . . . . . . 3 4 11 3 . 9 2 1 . 1 7 3 1 . 2 3 7 11 17 26 5 22 Total Turns 6116 | . . . . . . . . . . . . . . . . . . 57 60 320 23 . 140 18 34 . 5 131 20 12 . 71 25 83 101 241 750 76 3949 Longest Duration 3410 | . . . . . . . . . . . . . . . . . . 31 28 102 10 . 42 13 34 . 5 59 13 12 . 54 9 25 17 40 146 27 3410 Robots Corrupted 7 | . . . . . . . . . . . . . . . . . . . . . . . . . . . . . . . . . . . 2 . 3 . 2 Combat Hostiles 7 | . . . . . . . . . . . . . . . . . . . . . . . . . . . . . . . . . . . 2 . 3 . 2 Parts Fried 19 | . . . . . . . . . . . . . . . . . . . . 1 . . . . . . . . . . . . . . 5 . 8 . 5 Impact Corruptions 3 | . . . . . . . . . . . . . . 1 . . . . . 1 . . . . . . . . . . . 1 . . . . . . . Robots Melted 2 | . . . . . . . . . . . . . . . . . . . . . . . . . . . . . . . . . . . . . . . 2 Combat Hostiles 2 | . . . . . . . . . . . . . . . . . . . . . . . . . . . . . . . . . . . . . . . 2 Parts Melted 16 | . . . . . . . . . . . . . . . . . . 1 . . . . . . . . . . . . . . . . . 1 . 1 13 Heat Transferred 5423 | . . 111 148 . . . . . . . . . . . . . 37 238 . 150 . . . . . . . 450 . . . . . . . 185 309 . 3795 Parts Sabotaged 5 | . . . . . . . . . . . . . . . . . . . . . . . . . . . . 2 . . . . . . . . . . 3 Parts Stolen . | . . . . . . . . . . . . . . . . . . . . . . . . . . . . . . . . . . . . . . . . Parts Stripped . | . . . . . . . . . . . . . . . . . . . . . . . . . . . . . . . . . . . . . . . . Power Chain Reactions 4 | . . . . . . . . . . . . . . . . . . . . 3 . . . . . . . . . . . . . . 1 . . . . Missiles Intercepted . | . . . . . . . . . . . . . . . . . . . . . . . . . . . . . . . . . . . . . . . . Alert | -11 -10 -10 -9 -9 -9 -8 -8 -8 -7 -7 -7 -7 -6 -6 -6 -6 -6 -6 -6 -6 -5 -5 -5 -5 -5 -5 -4 -4 -4 -4 -4 -3 -3 -3 -2 -2 -2 -1 -1 ------- Run | Scr Mat Min Mat Min Exi Min Mat Sto Fac Low Low Zio Pro Fac Was Fac Ext Cet Arc Hub Fac Was Fac Upp Upp War Pro Fac Upp Upp Zhi Pro Res Qua Res Tes Sec Acc Com Peak Influence 5827 | 5 330 145 558 220 . . 452 429 1357 . . . . 537 141 783 387 514 257 902 490 101 693 . . . . 817 . . . . 289 151 260 533 1804 1241 5827 Initial 1046 | . 3 3 . 150 . . . 88 190 . . . . . 140 98 290 123 132 19 441 101 . . . . . . . . . . . 56 24 123 135 1046 425 Average 987 | 2 123 47 284 196 . . 98 199 274 . . . . 151 140 385 185 309 197 313 154 81 154 . . . . 434 . . . . 114 71 138 191 932 1042 3881 Maximum Alert Level 5 | . 1 . 2 1 . . 2 2 4 . . . . 2 . 3 1 2 1 3 2 . 2 . . . . 3 . . . . 1 . 1 2 5 4 5 Low Security (%) 44 | 100 74 100 40 33 . 100 78 54 57 . . . . 69 100 23 62 7 41 22 64 100 80 . . . . 41 . . . . 87 100 68 55 2 . . Level 1 17 | . 25 . 23 66 . . 17 25 14 . . . . 16 . 35 37 78 58 60 7 . 7 . . . . 5 . . . . 12 . 31 42 8 . . Level 2 9 | . . . 35 . . . 3 20 12 . . . . 14 . 25 . 14 . 12 28 . 12 . . . . 12 . . . . . . . 2 23 2 2 Level 3 7 | . . . . . . . . . 14 . . . . . . 14 . . . 5 . . . . . . . 41 . . . . . . . . 28 71 5 Level 4 4 | . . . . . . . . . 1 . . . . . . . . . . . . . . . . . . . . . . . . . . . 32 26 7 Level 5 4 | . . . . . . . . . . . . . . . . . . . . . . . . . . . . . . . . . . . . . 5 . 21 High Security 12 | . . . . . . . . . . . . . . . . . . . . . . . . . . . . . . . . . . . . . . . 62 Max Security . | . . . . . . . . . . . . . . . . . . . . . . . . . . . . . . . . . . . . . . . . Squads Dispatched 161 | . 5 . 5 . . . 4 3 17 . . . . 5 . 6 3 . . 9 1 . 4 . . . . 5 . . . . 1 1 6 13 23 5 45 Investigation 16 | . 4 . 2 . . . 1 . 3 . . . . . . 1 1 . . . . . 1 . . . . . . . . . . . . . . 2 1 Extermination 52 | . . . . . . . . . 6 . . . . 3 . 1 . . . 3 1 . 2 . . . . 2 . . . . . . 6 7 10 2 9 Reinforcement 33 | . 1 . 2 . . . 3 1 5 . . . . 2 . 3 2 . . 3 . . 1 . . . . 1 . . . . 1 1 . 2 5 . . Assault 49 | . . . 1 . . . . . . . . . . . . 1 . . . . . . . . . . . 2 . . . . . . . 1 8 1 35 Garrison 11 | . . . . . . . . 2 3 . . . . . . . . . . 3 . . . . . . . . . . . . . . . 3 . . . Intercept . | . . . . . . . . . . . . . . . . . . . . . . . . . . . . . . . . . . . . . . . . Construction Impeded 3 | . . . . . . . . . . . . . . . . 1 1 . . 1 . . . . . . . . . . . . . . . . . . . Haulers Reinforced 8 | . . . . . . . . . 1 . . . . 1 . 2 . . . . . . . . . . . 1 . . . . 1 . . . 2 . . Cargo Convoy Interrupts . | . . . . . . . . . . . . . . . . . . . . . . . . . . . . . . . . . . . . . . . . Stealth | -11 -10 -10 -9 -9 -9 -8 -8 -8 -7 -7 -7 -7 -6 -6 -6 -6 -6 -6 -6 -6 -5 -5 -5 -5 -5 -5 -4 -4 -4 -4 -4 -3 -3 -3 -2 -2 -2 -1 -1 --------- Run | Scr Mat Min Mat Min Exi Min Mat Sto Fac Low Low Zio Pro Fac Was Fac Ext Cet Arc Hub Fac Was Fac Upp Upp War Pro Fac Upp Upp Zhi Pro Res Qua Res Tes Sec Acc Com Distress Signals 31 | . 1 . 2 . . . 5 . 1 . . . . 1 . . 1 2 . 4 . . 3 . . . . . . . . . . . . 2 5 . 4 Communications Jammed 24 | . . . . . . . . . . . . . . . . . . . . . . . . . . . . . . . . . 2 . 2 19 1 . . Distress Signals 20 | . . . . . . . . . . . . . . . . . . . . . . . . . . . . . . . . . 1 . 2 16 1 . . Times Spotted 934 | . 34 9 57 3 . . 40 33 51 5 4 . 3 20 6 5 25 16 12 41 4 . 28 6 2 . 3 26 3 6 . 8 8 11 30 49 120 17 249 Peak Tracking Total 12 | . 7 2 6 3 . . 4 4 6 3 3 . 3 4 3 3 4 5 1 10 3 . 4 3 1 . 4 8 2 4 . 5 3 2 6 6 9 7 12 Tactical Retreats 69 | . 10 4 6 . . . 1 6 1 . . . . . . . 1 . . 2 . . . . 1 . . . . . . . . . . . 14 1 22 Traps | -11 -10 -10 -9 -9 -9 -8 -8 -8 -7 -7 -7 -7 -6 -6 -6 -6 -6 -6 -6 -6 -5 -5 -5 -5 -5 -5 -4 -4 -4 -4 -4 -3 -3 -3 -2 -2 -2 -1 -1 ------- Run | Scr Mat Min Mat Min Exi Min Mat Sto Fac Low Low Zio Pro Fac Was Fac Ext Cet Arc Hub Fac Was Fac Upp Upp War Pro Fac Upp Upp Zhi Pro Res Qua Res Tes Sec Acc Com Traps Triggered 32 | . 2 . . . . . . 3 7 . . . . 3 . 2 . . . 2 1 . 3 . . . . 1 . . . . . 2 1 1 . 3 1 Indirectly . | . . . . . . . . . . . . . . . . . . . . . . . . . . . . . . . . . . . . . . . . Trap Hack Attempts . | . . . . . . . . . . . . . . . . . . . . . . . . . . . . . . . . . . . . . . . . Triggered . | . . . . . . . . . . . . . . . . . . . . . . . . . . . . . . . . . . . . . . . . Disarmed . | . . . . . . . . . . . . . . . . . . . . . . . . . . . . . . . . . . . . . . . . Reprogrammed 6 | . . . . . . . . . . . . . . . . . . . . . . . . . . . . . . . . . . 6 . . . . . Reused 3 | . . . . . . . . . . . . . . . . . . . . . . . . . . . . . . . . . . 3 . . . . . Traps Extracted . | . . . . . . . . . . . . . . . . . . . . . . . . . . . . . . . . . . . . . . . . Installed . | . . . . . . . . . . . . . . . . . . . . . . . . . . . . . . . . . . . . . . . . Triggered 4 | . . . . . . . . . . . . . . . . . . . . . . . . . . . . . 1 . . . . 3 . . . . . Machines | -11 -10 -10 -9 -9 -9 -8 -8 -8 -7 -7 -7 -7 -6 -6 -6 -6 -6 -6 -6 -6 -5 -5 -5 -5 -5 -5 -4 -4 -4 -4 -4 -3 -3 -3 -2 -2 -2 -1 -1 ---------- Run | Scr Mat Min Mat Min Exi Min Mat Sto Fac Low Low Zio Pro Fac Was Fac Ext Cet Arc Hub Fac Was Fac Upp Upp War Pro Fac Upp Upp Zhi Pro Res Qua Res Tes Sec Acc Com Machines Disabled 83 | . 1 . 7 . . . . 1 3 . . . . . . . . 1 . 15 . . . . . . . 4 . . . . 3 10 3 14 12 1 8 Max in Single Turn 14 | . 1 . 2 . . . . 1 1 . . . . . . . . . . 14 . . . . . . . 3 . . . . 1 1 1 1 1 1 2 Garrison Access 7 | . . . . . . . 1 1 1 . . . . . . . . . . . . . 1 . . . . . . . . . 1 1 . 1 . . . Phase Generator 1 | . . . . . . . . . . . . . . . . . . . . . . . . . . . . . . . . . . . . . . . 1 Network Hub 2 | . . . . . . . . . . . . . . . . . . . . 2 . . . . . . . . . . . . . . . . . . . Machines Sabotaged . | . . . . . . . . . . . . . . . . . . . . . . . . . . . . . . . . . . . . . . . . Garrisons Compromised . | . . . . . . . . . . . . . . . . . . . . . . . . . . . . . . . . . . . . . . . . Overloaded Fab Kills . | . . . . . . . . . . . . . . . . . . . . . . . . . . . . . . . . . . . . . . . . Fab Network Shutdowns 5 | . . . . . . . . . 1 . . . . 1 . . . . . . 1 . 1 . . . . 1 . . . . . . . . . . . Hacking | -11 -10 -10 -9 -9 -9 -8 -8 -8 -7 -7 -7 -7 -6 -6 -6 -6 -6 -6 -6 -6 -5 -5 -5 -5 -5 -5 -4 -4 -4 -4 -4 -3 -3 -3 -2 -2 -2 -1 -1 --------- Run | Scr Mat Min Mat Min Exi Min Mat Sto Fac Low Low Zio Pro Fac Was Fac Ext Cet Arc Hub Fac Was Fac Upp Upp War Pro Fac Upp Upp Zhi Pro Res Qua Res Tes Sec Acc Com Machines Accessed 160 | . 9 . 14 . 1 . 11 13 16 1 . 1 . 6 . 4 3 1 . 10 3 . 8 . . 5 . 5 1 2 4 . 2 9 10 9 7 5 . Terminals 104 | . 7 . 11 . . . 7 10 7 . . . . 4 . 3 3 1 . 10 2 . 3 . . . . 2 1 . . . 1 5 8 7 7 5 . Fabricators 11 | . . . . . . . . . 4 . . . . 2 . 1 . . . . 1 . 2 . . . . 1 . . . . . . . . . . . Repair Stations 15 | . 1 . 1 . . . 2 2 2 . . . . . . . . . . . . . 1 . . . . 2 . . . . . 1 2 1 . . . Recycling Units 2 | . 1 . 1 . . . . . . . . . . . . . . . . . . . . . . . . . . . . . . . . . . . . Scanalyzers 7 | . . . 1 . . . 1 . 2 . . . . . . . . . . . . . 1 . . . . . . . . . . 2 . . . . . Garrison Access 7 | . . . . . . . 1 1 1 . . . . . . . . . . . . . 1 . . . . . . . . . 1 1 . 1 . . . Total Hacks 619 | . 27 . 36 . 5 . 36 35 43 1 . 5 . 16 . 10 10 1 . 24 19 . 47 . . 8 . 31 1 4 17 . 7 48 70 60 35 23 . Successful 384 | . 16 . 22 . 5 . 29 30 24 1 . 5 . 12 . 2 4 . . 8 14 . 34 . . 8 . 19 1 4 17 . 4 33 35 27 17 13 . Failed 235 | . 11 . 14 . . . 7 5 19 . . . . 4 . 8 6 1 . 16 5 . 13 . . . . 12 . . . . 3 15 35 33 18 10 . Catastrophic 40 | . 1 . 7 . . . . . 4 . . . . 2 . 1 1 1 . . . . 2 . . . . . . . . . . 2 7 5 4 3 . Database Lockouts . | . . . . . . . . . . . . . . . . . . . . . . . . . . . . . . . . . . . . . . . . Manual 291 | . 20 . 30 . . . 14 16 13 . . . . 11 . 3 2 1 . 19 17 . 22 . . . . 13 . . . . 1 17 31 27 18 16 . Terminals 417 | . 21 . 31 . . . 23 25 17 . . . . 13 . 6 10 1 . 24 14 . 19 . . . . 10 1 . . . 6 30 57 51 35 23 . Fabricators 46 | . . . . . . . . . 15 . . . . 3 . 4 . . . . 5 . 13 . . . . 6 . . . . . . . . . . . Repair Stations 85 | . 4 . 2 . . . 9 9 6 . . . . . . . . . . . . . 12 . . . . 15 . . . . . 9 13 6 . . . Recycling Units 3 | . 2 . 1 . . . . . . . . . . . . . . . . . . . . . . . . . . . . . . . . . . . . Scanalyzers 19 | . . . 2 . . . 3 . 4 . . . . . . . . . . . . . 2 . . . . . . . . . . 8 . . . . . Garrison Access 9 | . . . . . . . 1 1 1 . . . . . . . . . . . . . 1 . . . . . . . . . 1 1 . 3 . . . Terminal Hacks 188 | . 4 . 10 . 5 . 10 13 5 1 . 5 . 7 . 1 3 . . 3 7 . 8 . . 8 . 1 1 4 17 . 2 14 19 17 13 10 . Record 21 | . . . . . 5 . . . . . . . . . . . . . . . . . . . . 6 . . 1 3 5 . . . 1 . . . . Part Schematic 16 | . . . . . . . . . 1 . . 5 . 2 . . . . . . 1 . 1 . . . . . . . 4 . . 1 1 . . . . Robot Analysis 6 | . . . . . . . . . . . . . . . . . . . . . . . . . . . . . . . 4 . . . 2 . . . . Prototype ID Bank 5 | . . . . . . . . . . . . . . . . . . . . . . . . . . . . . . . 4 . . . . . . 1 . Open Door 14 | . . . . . . . . 3 . 1 . . . . . . 2 . . . . . . . . 2 . . . 1 . . . . . . 2 3 . Level Access Points 1 | . . . . . . . . . . . . . . . . . . . . . . . . . . . . . . . . . . . . . 1 . . Branch Access Points 6 | . . . . . . . 1 . 1 . . . . . . 1 . . . . . . 1 . . . . . . . . . 1 . 1 . . . . Machine Index 4 | . . . . . . . 1 . . . . . . . . . . . . . . . . . . . . . . . . . 1 1 1 . . . . Terminal Index 14 | . . . 1 . . . . 2 1 . . . . 1 . . . . . 1 1 . 1 . . . . 1 . . . . . 1 1 1 1 1 . Fabricator Index 5 | . . . . . . . . . 1 . . . . 1 . . . . . . 1 . 1 . . . . . . . . . . . . 1 . . . Repair Station Index 2 | . . . 1 . . . . . . . . . . . . . . . . . . . . . . . . . . . . . . . . 1 . . . Scanalyzer Index 1 | . . . . . . . . . . . . . . . . . . . . . . . . . . . . . . . . . . . . . 1 . . Alert Level 31 | . 1 . 3 . . . 2 4 . . . . . 2 . . 1 . . 1 1 . 1 . . . . . . . . . . 3 5 5 1 1 . Unreport Threat 24 | . 1 . 3 . . . 2 1 . . . . . 1 . . . . . . 3 . . . . . . . . . . . . 2 2 3 2 4 . Locate Traps 6 | . . . . . . . . . . . . . . . . . . . . . . . 2 . . . . . . . . . . 1 1 2 . . . Reprogram Traps 1 | . . . . . . . . . . . . . . . . . . . . . . . . . . . . . . . . . . 1 . . . . . Recall Extermination 2 | . . . . . . . . . . . . . . . . . . . . . . . . . . . . . . . . . . . 1 . 1 . . Hauler Manifests 6 | . . . . . . . 1 . 1 . . . . . . . . . . . . . 1 . . . . . . . . . . . 1 1 1 . . Registered Prototypes 1 | . . . . . . . . . . . . . . . . . . . . . . . . . . . . . . . . . . . 1 . . . . Zone Layout 20 | . 2 . 2 . . . 3 3 . . . . . . . . . . . 1 . . . . . . . . . . . . . 4 1 3 1 . . Activate Exoskeleton 2 | . . . . . . . . . . . . . . . . . . . . . . . . . . . . . . . . . . . . . 2 . . Fabricator Hacks 20 | . . . . . . . . . 7 . . . . 2 . 1 . . . . 2 . 6 . . . . 2 . . . . . . . . . . . Load Schematic 11 | . . . . . . . . . 4 . . . . 1 . 1 . . . . 1 . 3 . . . . 1 . . . . . . . . . . . Build 9 | . . . . . . . . . 3 . . . . 1 . . . . . . 1 . 3 . . . . 1 . . . . . . . . . . . Repair Station Hacks 67 | . 4 . 2 . . . 8 8 5 . . . . . . . . . . . . . 9 . . . . 11 . . . . . 8 9 3 . . . Scan Component 37 | . 2 . 1 . . . 4 5 3 . . . . . . . . . . . . . 5 . . . . 6 . . . . . 4 5 2 . . . Repair 30 | . 2 . 1 . . . 4 3 2 . . . . . . . . . . . . . 4 . . . . 5 . . . . . 4 4 1 . . . Recycling Unit Hacks . | . . . . . . . . . . . . . . . . . . . . . . . . . . . . . . . . . . . . . . . . Scanalyzer 16 | . . . 2 . . . 3 . 4 . . . . . . . . . . . . . 2 . . . . . . . . . . 5 . . . . . Insert Component 9 | . . . 1 . . . 1 . 2 . . . . . . . . . . . . . 1 . . . . . . . . . . 4 . . . . . Analyze 7 | . . . 1 . . . 2 . 2 . . . . . . . . . . . . . 1 . . . . . . . . . . 1 . . . . . Garrison Access Hacks 7 | . . . . . . . 1 1 1 . . . . . . . . . . . . . 1 . . . . . . . . . 1 1 . 1 . . . Seal Access 7 | . . . . . . . 1 1 1 . . . . . . . . . . . . . 1 . . . . . . . . . 1 1 . 1 . . . Unauthorized Hacks 86 | . 8 . 8 . . . 7 8 2 . . . . 3 . . 1 . . 5 5 . 8 . . . . 5 . . . . 1 5 7 6 4 3 . Terminals 74 | . 7 . 7 . . . 7 8 2 . . . . 3 . . 1 . . 5 2 . 4 . . . . 2 . . . . 1 5 7 6 4 3 . Track 1 | . . . . . . . . 1 . . . . . . . . . . . . . . . . . . . . . . . . . . . . . . . Assimilate 6 | . . . . . . . 2 . . . . . . 1 . . . . . . . . 1 . . . . . . . . . . . . 2 . . . Botnet 66 | . 7 . 7 . . . 4 7 2 . . . . 2 . . 1 . . 5 2 . 3 . . . . 2 . . . . 1 5 7 4 4 3 . Operators 1 | . . . . . . . 1 . . . . . . . . . . . . . . . . . . . . . . . . . . . . . . . . Fabricators 10 | . . . . . . . . . . . . . . . . . . . . . 3 . 4 . . . . 3 . . . . . . . . . . . Report 3 | . . . . . . . . . . . . . . . . . . . . . 1 . 1 . . . . 1 . . . . . . . . . . . Prioritize 2 | . . . . . . . . . . . . . . . . . . . . . 1 . . . . . . 1 . . . . . . . . . . . Siphon 4 | . . . . . . . . . . . . . . . . . . . . . 1 . 2 . . . . 1 . . . . . . . . . . . Haulers 1 | . . . . . . . . . . . . . . . . . . . . . . . 1 . . . . . . . . . . . . . . . . Repair Stations . | . . . . . . . . . . . . . . . . . . . . . . . . . . . . . . . . . . . . . . . . Recycling Units 2 | . 1 . 1 . . . . . . . . . . . . . . . . . . . . . . . . . . . . . . . . . . . . Tunnel 2 | . 1 . 1 . . . . . . . . . . . . . . . . . . . . . . . . . . . . . . . . . . . . Scanalyzers . | . . . . . . . . . . . . . . . . . . . . . . . . . . . . . . . . . . . . . . . . Garrison Access . | . . . . . . . . . . . . . . . . . . . . . . . . . . . . . . . . . . . . . . . . Data Cores Recovered 7 | . . . 1 . . . . 1 . . . . . . . . . . . . 1 . . . . . . . . . . . . . 1 1 2 . . Used 2 | . . . . . . . . . . . . . . . . . . . . . 1 . . . . . . . . . . . . . . . 1 . . Hacking Detections 113 | . 8 . 12 . . . 6 10 15 . . . . 6 . 4 3 . . 10 2 . 5 . . . . 4 . . . . 1 5 6 7 4 5 . Full Trace Events 9 | . 1 . 1 . . . 1 . 3 . . . . . . 1 1 . . . . . 1 . . . . . . . . . . . . . . . . Feedback Events . | . . . . . . . . . . . . . . . . . . . . . . . . . . . . . . . . . . . . . . . . Feedback Blocked . | . . . . . . . . . . . . . . . . . . . . . . . . . . . . . . . . . . . . . . . . Robot Schematics Acquired . | . . . . . . . . . . . . . . . . . . . . . . . . . . . . . . . . . . . . . . . . Robots Built . | . . . . . . . . . . . . . . . . . . . . . . . . . . . . . . . . . . . . . . . . Matter . | . . . . . . . . . . . . . . . . . . . . . . . . . . . . . . . . . . . . . . . . Time . | . . . . . . . . . . . . . . . . . . . . . . . . . . . . . . . . . . . . . . . . Total Robot Build Rating . | . . . . . . . . . . . . . . . . . . . . . . . . . . . . . . . . . . . . . . . . Part Schematics Acquired 22 | . . . 1 . . . 1 . 3 . . 5 . 2 . . . . . . 1 . 2 . . . . . . . 4 . . 2 1 . . . . Parts Built 14 | . . . . . . . . . 4 . . . . 1 . . . . . . 2 . 6 . . . . 1 . . . . . . . . . . . Matter 2118 | . . . . . . . . . 676 . . . . 384 . . . . . . 212 . 462 . . . . 384 . . . . . . . . . . . Time 737 | . . . . . . . . . 175 . . . . 102 . . . . . . 106 . 252 . . . . 102 . . . . . . . . . . . Total Part Build Rating 70 | . . . . . . . . . 18 . . . . 8 . . . . . . 12 . 24 . . . . 8 . . . . . . . . . . . Parts Repaired 30 | . 2 . 1 . . . 4 3 2 . . . . . . . . . . . . . 4 . . . . 5 . . . . . 4 4 1 . . . Time 1352 | . 52 . 38 . . . 244 108 57 . . . . . . . . . . . . . 166 . . . . 264 . . . . . 196 190 37 . . . Parts Recycled . | . . . . . . . . . . . . . . . . . . . . . . . . . . . . . . . . . . . . . . . . Recycled Matter . | . . . . . . . . . . . . . . . . . . . . . . . . . . . . . . . . . . . . . . . . Retrieved Matter . | . . . . . . . . . . . . . . . . . . . . . . . . . . . . . . . . . . . . . . . . Retrieved Components . | . . . . . . . . . . . . . . . . . . . . . . . . . . . . . . . . . . . . . . . . Parts Scanalyzed 6 | . . . 1 . . . 1 . 2 . . . . . . . . . . . . . 1 . . . . . . . . . . 1 . . . . . Part Schematics Acquired 6 | . . . 1 . . . 1 . 2 . . . . . . . . . . . . . 1 . . . . . . . . . . 1 . . . . . Parts Damaged 2 | . . . . . . . 1 . . . . . . . . . . . . . . . 1 . . . . . . . . . . . . . . . . Bothacking | -11 -10 -10 -9 -9 -9 -8 -8 -8 -7 -7 -7 -7 -6 -6 -6 -6 -6 -6 -6 -6 -5 -5 -5 -5 -5 -5 -4 -4 -4 -4 -4 -3 -3 -3 -2 -2 -2 -1 -1 ------------ Run | Scr Mat Min Mat Min Exi Min Mat Sto Fac Low Low Zio Pro Fac Was Fac Ext Cet Arc Hub Fac Was Fac Upp Upp War Pro Fac Upp Upp Zhi Pro Res Qua Res Tes Sec Acc Com Used RIF Installer . | . . . . . . . . . . . . . . . . . . . . . . . . . . . . . . . . . . . . . . . . Robots Hacked 2 | . . . . . . . . . . . . . . 1 . . . . . . . . . . . . . 1 . . . . . . . . . . . Non-combat 2 | . . . . . . . . . . . . . . 1 . . . . . . . . . . . . . 1 . . . . . . . . . . . Combat . | . . . . . . . . . . . . . . . . . . . . . . . . . . . . . . . . . . . . . . . . Robot Hacks Applied 2 | . . . . . . . . . . . . . . 1 . . . . . . . . . . . . . 1 . . . . . . . . . . . find_chute 2 | . . . . . . . . . . . . . . 1 . . . . . . . . . . . . . 1 . . . . . . . . . . . Relay Couplers Released 7 | . . . . . . . . . . . . . . . . . . . . . . . 7 . . . . . . . . . . . . . . . . Programmers 7 | . . . . . . . . . . . . . . . . . . . . . . . 7 . . . . . . . . . . . . . . . . Robots Rewired 14 | . . . . . . . . . . . . . . . . . 14 . . . . . . . . . . . . . . . . . . . . . . Allies Hacked 2 | . . . . . . . . . . . . . . . . . . . . . . . 2 . . . . . . . . . . . . . . . . Hacks Repelled . | . . . . . . . . . . . . . . . . . . . . . . . . . . . . . . . . . . . . . . . . Allies | -11 -10 -10 -9 -9 -9 -8 -8 -8 -7 -7 -7 -7 -6 -6 -6 -6 -6 -6 -6 -6 -5 -5 -5 -5 -5 -5 -4 -4 -4 -4 -4 -3 -3 -3 -2 -2 -2 -1 -1 -------- Run | Scr Mat Min Mat Min Exi Min Mat Sto Fac Low Low Zio Pro Fac Was Fac Ext Cet Arc Hub Fac Was Fac Upp Upp War Pro Fac Upp Upp Zhi Pro Res Qua Res Tes Sec Acc Com Total Allies 75 | . . 1 . . . . 2 . . . . . . 1 18 . 17 5 . . . 20 1 . . . . . . . . . . . . 2 8 . . Largest Group 20 | . . 1 . . . . 2 1 . . . . . 1 18 18 8 10 . . . 20 19 . . . . . . . . . . . . 1 8 . . Highest-Rated Group 819 | . . 31 . . . . 36 26 . . . . . 10 668 668 275 745 . . . 819 769 . . . . . . . . . . . . 44 113 . . Highest-Rated Ally 156 | . . 31 . . . . 26 26 . . . . . 10 50 50 156 156 . . . 50 46 . . . . . . . . . . . . 44 26 . . Total Orders . | . . . . . . . . . . . . . . . . . . . . . . . . . . . . . . . . . . . . . . . . Ally Attacks 379 | . . 3 . . . . . . . . . . . . . 133 74 65 . . . . 76 . . . . . . . . . . . . . 28 . . Total Damage 10210 | . . 21 . . . . . . . . . . . . . 4729 1404 1618 . . . . 1677 . . . . . . . . . . . . . 761 . . Kills 59 | . . 1 . . . . . . . . . . . . . 24 13 9 . . . . 7 . . . . . . . . . . . . . 5 . . Allies Corrupted 1 | . . . . . . . . . . . . . . . . . . . . . . . 1 . . . . . . . . . . . . . . . . Allies Melted 1 | . . . . . . . . . . . . . . . . . . 1 . . . . . . . . . . . . . . . . . . . . . Intel | -11 -10 -10 -9 -9 -9 -8 -8 -8 -7 -7 -7 -7 -6 -6 -6 -6 -6 -6 -6 -6 -5 -5 -5 -5 -5 -5 -4 -4 -4 -4 -4 -3 -3 -3 -2 -2 -2 -1 -1 ------- Run | Scr Mat Min Mat Min Exi Min Mat Sto Fac Low Low Zio Pro Fac Was Fac Ext Cet Arc Hub Fac Was Fac Upp Upp War Pro Fac Upp Upp Zhi Pro Res Qua Res Tes Sec Acc Com Robot Analysis Total 6 | . . . . . . . . . . . . . . . . . . . . . . . . . . . . . . . 4 . . . 2 . . . . Derelict Logs Recovered 10 | . . 1 . 3 . . . . . . . . . . . . . . . . . . . 1 2 . . . 1 2 . . . . . . . . . Drone Launches . | . . . . . . . . . . . . . . . . . . . . . . . . . . . . . . . . . . . . . . . . Drone Recoveries . | . . . . . . . . . . . . . . . . . . . . . . . . . . . . . . . . . . . . . . . . Exploration | -11 -10 -10 -9 -9 -9 -8 -8 -8 -7 -7 -7 -7 -6 -6 -6 -6 -6 -6 -6 -6 -5 -5 -5 -5 -5 -5 -4 -4 -4 -4 -4 -3 -3 -3 -2 -2 -2 -1 -1 ------------- Run | Scr Mat Min Mat Min Exi Min Mat Sto Fac Low Low Zio Pro Fac Was Fac Ext Cet Arc Hub Fac Was Fac Upp Upp War Pro Fac Upp Upp Zhi Pro Res Qua Res Tes Sec Acc Com Turns Passed 61770 | 67 1838 824 2743 306 427 73 2354 1559 5475 1164 1145 2496 681 2301 392 928 1231 639 476 1525 433 492 2180 706 408 650 466 1065 756 582 224 654 472 2318 2961 3855 3760 952 10192 Spaces Moved 21495 | 37 820 297 893 114 165 29 727 457 1964 423 414 958 241 725 161 521 587 220 95 566 147 284 910 409 165 394 273 427 400 335 134 334 228 1092 928 1196 938 289 2198 Core 8 | 8 . . . . . . . . . . . . . . . . . . . . . . . . . . . . . . . . . . . . . . . Treads 21487 | 29 820 297 893 114 165 29 727 457 1964 423 414 958 241 725 161 521 587 220 95 566 147 284 910 409 165 394 273 427 400 335 134 334 228 1092 928 1196 938 289 2198 Legs . | . . . . . . . . . . . . . . . . . . . . . . . . . . . . . . . . . . . . . . . . Wheels . | . . . . . . . . . . . . . . . . . . . . . . . . . . . . . . . . . . . . . . . . Hover . | . . . . . . . . . . . . . . . . . . . . . . . . . . . . . . . . . . . . . . . . Flight . | . . . . . . . . . . . . . . . . . . . . . . . . . . . . . . . . . . . . . . . . Fastest Speed 50 | 50 160 260 260 260 260 260 255 250 152 260 260 260 260 260 160 160 160 160 160 160 160 160 160 160 160 160 160 160 160 160 160 160 160 160 152 152 160 160 160 Average Speed 213 | 136 187 260 260 260 260 260 256 250 232 260 260 260 260 260 185 160 160 160 160 160 160 160 160 160 160 160 160 160 160 160 160 160 160 160 218 247 233 255 249 Slowest Speed 345 | 160 260 260 260 260 260 260 260 345 260 260 260 260 260 260 260 160 160 260 160 160 160 160 160 160 160 160 160 160 160 160 160 160 160 265 265 260 260 260 260 Overloaded Moves . | . . . . . . . . . . . . . . . . . . . . . . . . . . . . . . . . . . . . . . . . Propulsion Burnouts . | . . . . . . . . . . . . . . . . . . . . . . . . . . . . . . . . . . . . . . . . Robots Hopped . | . . . . . . . . . . . . . . . . . . . . . . . . . . . . . . . . . . . . . . . . Cave-ins Triggered 2 | . . . . . . . . . . . . . . . . . 1 . . . . . . . . . . . . . . . . . . . . 1 . Teleports 3 | . . . . . . . . . . . . . . . . . . . . . . . . . . . . . . . . . . . . 1 2 . . Exploration Rate (%) 50 | 4 96 55 79 28 57 15 60 94 51 63 57 82 44 19 71 20 65 56 71 51 3 89 28 66 35 63 47 10 47 61 60 51 7 89 26 92 60 8 56 Regions Visited 39 Branch Regions 25 Pre-discovered Areas 8 | . 1 1 1 . 1 . . . . . . 1 . . . . . . . . . . . . . . . . . . 3 . . . . . . . . Known Exits Taken 27 | . . . . . . . 1 . 1 1 1 1 1 . . 1 1 1 1 1 . . 1 1 1 1 1 1 1 1 1 1 1 1 1 1 1 1 . Unknown Exits Taken 8 | 1 1 1 1 1 1 1 . 1 . . . . . . . . . . . . . . . . . . . . . . . . . . . . . . . Scrap Searched 12 | . . 1 . 1 . . . . . 3 . 2 . . . . . . . . . . . 2 1 . . . . 1 . 1 . . . . . . . Spaces Dug 206 | . . . 14 . . . . . 27 . . . . 4 1 . 10 . . 6 . . 2 . . 1 . 7 43 3 . . . 6 . 11 31 11 29 Terrain Destroyed 1045 | . 6 49 43 . . . 24 13 28 9 11 . . 4 1 . 11 . . 311 . 1 11 34 5 2 22 32 56 36 . 8 7 14 50 45 34 13 165 Melee 39 | . . . . . . . . . 26 . . . . 4 1 . . . . 6 . . 2 . . . . . . . . . . . . . . . . Projectile 384 | . . . . . . . . . 2 . . . . . . . 11 . . . . 1 9 4 5 2 1 22 56 14 . 8 7 14 40 45 34 13 96 AOE 622 | . 6 49 43 . . . 24 13 . 9 11 . . . . . . . . 305 . . . 30 . . 21 10 . 22 . . . . 10 . . . 69 Terrain Rammed . | . . . . . . . . . . . . . . . . . . . . . . . . . . . . . . . . . . . . . . . . Walls Destroyed . | . . . . . . . . . . . . . . . . . . . . . . . . . . . . . . . . . . . . . . . . Machines Disabled . | . . . . . . . . . . . . . . . . . . . . . . . . . . . . . . . . . . . . . . . . Actions | -11 -10 -10 -9 -9 -9 -8 -8 -8 -7 -7 -7 -7 -6 -6 -6 -6 -6 -6 -6 -6 -5 -5 -5 -5 -5 -5 -4 -4 -4 -4 -4 -3 -3 -3 -2 -2 -2 -1 -1 --------- Run | Scr Mat Min Mat Min Exi Min Mat Sto Fac Low Low Zio Pro Fac Was Fac Ext Cet Arc Hub Fac Was Fac Upp Upp War Pro Fac Upp Upp Zhi Pro Res Qua Res Tes Sec Acc Com Total 34311 | 47 1003 325 1167 120 164 28 1094 750 2636 461 478 964 291 1051 211 593 798 400 382 1034 324 306 1467 440 303 413 296 737 481 368 144 436 305 1614 1771 1929 2115 421 6444 Wait 9193 | 2 85 7 104 2 . . 246 164 360 12 59 . 45 259 17 50 123 73 262 368 154 14 432 14 133 . 13 205 60 8 . 86 42 416 724 462 711 44 3437 Move 21456 | 36 819 296 892 113 164 28 726 456 1963 422 413 957 240 725 160 520 585 219 94 565 147 283 909 408 164 393 272 426 399 334 133 333 227 1091 927 1195 937 287 2198 Hop . | . . . . . . . . . . . . . . . . . . . . . . . . . . . . . . . . . . . . . . . . Pick Up 241 | 1 13 1 23 1 . . 14 9 25 4 . 1 . 6 2 3 2 13 3 1 1 2 11 . . 1 1 8 . 3 1 . 5 14 7 22 15 11 17 Fast Attach 233 | 6 3 . 5 . . . 4 9 17 . . 3 . 6 3 . 1 8 . 1 1 . 7 1 . 6 1 11 . 2 5 . 2 9 12 34 11 2 63 Attach 150 | . 2 . 3 . . . 5 1 10 1 . . . 2 . 2 2 2 1 . 7 . 2 1 . 1 1 8 . 2 . . 3 3 4 21 13 8 45 Detach 48 | . . . 1 . . . . . . . . . . . . . 1 . . . . . . 1 . 1 1 1 . . . . . 1 . 10 1 2 28 Swap 390 | . 5 3 19 . . . 10 6 61 7 2 . . 4 3 6 13 17 4 29 5 . 19 3 4 1 . 17 4 2 . 6 4 11 14 17 15 13 66 Drop 358 | . 6 . 23 1 . . 12 13 33 3 . 3 3 8 8 1 2 20 3 5 . . 12 1 . 8 2 10 . 4 5 . 5 19 13 43 15 5 72 Fire 2094 | 2 67 17 97 3 . . 76 82 124 12 4 . 3 30 17 5 68 40 15 51 8 7 53 11 2 2 5 48 18 13 . 10 17 50 63 121 395 45 513 Melee 74 | . . . . . . . . 2 34 . . . . 4 1 3 . 8 . 7 . . 13 . . . . . . . . . . . . 2 . . . Ram 3 | . . . . . . . . . . . . . . . . . . . . 3 . . . . . . . . . . . . . . . . . . . Kick . | . . . . . . . . . . . . . . . . . . . . . . . . . . . . . . . . . . . . . . . . Crush 63 | . 3 1 . . . . 1 6 5 . . . . 7 . 3 . . . 4 1 . 9 . . . . 3 . . . 1 . . 7 2 2 3 5 Escape Stasis 8 | . . . . . . . . 2 4 . . . . . . . 1 . . . . . . . . . . . . . . . . . . . . 1 . Rewire . | . . . . . . . . . . . . . . . . . . . . . . . . . . . . . . . . . . . . . . . . Trap . | . . . . . . . . . . . . . . . . . . . . . . . . . . . . . . . . . . . . . . . . Miscellaneous . | . . . . . . . . . . . . . . . . . . . . . . . . . . . . . . . . . . . . . . . . Route ------- -11/Scrapyard -10/Materials (discovered 4 exits: *Mat x3 / [*Min]) -10/Mines (discovered 2 exits: *Mat x2) -9/Materials (discovered 4 exits: *Mat x3 / [*Min]) -9/Mines -9/Exiles -8/Mines -8/Materials (discovered 3 exits: *Fac x2 / *Sto) -8/Storage (discovered 2 exits: *Fac / [Rec]) -7/Factory (discovered 5 exits: *Fac x3 / *Low x2) -7/Lower Caves -7/Lower Caves -7/Zion -6/Proximity Caves -6/Factory (discovered 3 exits: *Fac / *Low / *Ext) -6/Waste -6/Factory (discovered 5 exits: *Fac / Low x2 / *Ext x2) -6/Extension (discovered 2 exits: *Fac / *Cet) -6/Cetus (discovered 2 exits: *Fac / *Arc) -6/Archives (discovered 2 exits: *Hub x2) -6/Hub_04(d) (discovered 2 exits: *Fac x2) -5/Factory -5/Waste -5/Factory (discovered 2 exits: *Upp x2) -5/Upper Caves -5/Upper Caves -5/Warlord -4/Proximity Caves -4/Factory (discovered 2 exits: *Res / *Upp) -4/Upper Caves -4/Upper Caves -4/Zhirov -3/Proximity Caves -3/Research (discovered 3 exits: Res / *Qua x2) -3/Quarantine -2/Research (discovered 2 exits: *Tes x2) -2/Testing (discovered 2 exits: *Acc / *Sec) -2/Section 7 -1/Access -1/Command History --------- Turn | Location | Event 6 | -11/Scrapyard | Discovered new exit (range 15) 68 | -11/Scrapyard | Entered Materials 96 | -10/Materials | Discovered new exit (range 15) 306 | -10/Materials | Discovered new exit (range 14) 313 | -10/Materials | Build established: Mutant 462 | -10/Materials | Discovered new exit (range 13) 988 | -10/Materials | Discovered new exit (range 14) 1833 | -10/Materials | Repaired Lgt. Treads 1861 | -10/Materials | Repaired Assault Rifle 1906 | -10/Materials | Entered Mines 1909 | -10/Mines | Received a Mining Laser from a helpful Derelict 2049 | -10/Mines | Learned location of Zion (-7) 2135 | -10/Mines | Assembled infested the area 2405 | -10/Mines | Discovered new exit (range 5) 2510 | -10/Mines | Discovered new exit (range 6) 2730 | -10/Mines | Entered Materials 2730 | -9/Materials | Evolved 2 slots: Utility x1, Weapon x1 3319 | -9/Materials | Discovered new exit (range 10) 3356 | -9/Materials | Build established: Scavenger-Gunner 3914 | -9/Materials | Discovered new exit (range 8) 4342 | -9/Materials | Build established: Scavenger-Tank 4730 | -9/Materials | First assault squad dispatched 4889 | -9/Materials | Discovered new exit (range 5) 5184 | -9/Materials | Discovered new exit (range 12) 5366 | -9/Materials | Repaired Minigun 5473 | -9/Materials | Entered Mines 5555 | -9/Mines | Learned Materials interactive machine intel 5560 | -9/Mines | Found a damaged Exp. Sensor Array with a note attached 5566 | -9/Mines | Found Prototype Device 5662 | -9/Mines | Learned Materials security intel 5766 | -9/Mines | Deemed a non-threat by the Exiles lab entrance 5768 | -9/Mines | Discovered new exit (range 5) 5779 | -9/Mines | Entered Exiles 5844 | -9/Exiles | Met 8R-AWN 5889 | -9/Exiles | Met EX-HEX 6026 | -9/Exiles | Met EX-DEC 6177 | -9/Exiles | Discovered new exit (range 14) 6206 | -9/Exiles | Entered Mines 6271 | -8/Mines | Discovered new exit (range 3) 6279 | -8/Mines | Entered Materials 6279 | -8/Materials | Evolved 2 slots: Propulsion x1, Utility x1 6280 | -8/Materials | Identified exit to Storage 6282 | -8/Materials | Loaded intel: 19 interactive machine locations 6356 | -8/Materials | Repaired Minigun 6654 | -8/Materials | Identified Exp. Sensor Array 7023 | -8/Materials | Repaired Broken Exp. Sensor Array 7119 | -8/Materials | Repaired Med. Armor Plating 7158 | -8/Materials | Repaired Imp. Heat Sink 7264 | -8/Materials | Discovered new exit (range 3) 7996 | -8/Materials | Discovered new exit (range 10) 8633 | -8/Materials | Entered Storage 8633 | -8/Storage | Accompanied by 1 ally 9259 | -8/Storage | Build established: Tank 9301 | -8/Storage | Discovered new exit (range 14) 9768 | -8/Storage | Garrison activated, responded to threat 10032 | -8/Storage | Repaired Hrd. Medium Armor Plating 10072 | -8/Storage | Repaired Adv. Treads 10105 | -8/Storage | Repaired Imp. Treads 10147 | -8/Storage | Discovered new exit (range 16) 10192 | -8/Storage | Entered Factory 10192 | -7/Factory | Evolved 2 slots: Propulsion x1, Utility x1 10742 | -7/Factory | Build established: Mutant 11517 | -7/Factory | Found Prototype Launcher 11517 | -7/Factory | Identified Rocket Array 11807 | -7/Factory | Build established: Skirmisher 11915 | -7/Factory | Discovered new exit (range 10) 11937 | -7/Factory | Identified exit to Factory 12294 | -7/Factory | Discovered exit to Factory (range 8) 12740 | -7/Factory | Build established: Mutant 13295 | -7/Factory | Build established: Skirmisher 13433 | -7/Factory | Identified exit to Lower Caves 13633 | -7/Factory | Repaired Adv. Treads 13749 | -7/Factory | Repaired Adv. Treads 14267 | -7/Factory | Build established: Tank 14464 | -7/Factory | Fabricated Exp. Sensor Array (x1) 14730 | -7/Factory | Fabricated Armor Integrity Analyzer? 14754 | -7/Factory | Garrison activated, responded to threat 14825 | -7/Factory | System corruption reached 10% 15286 | -7/Factory | Discovered exit to Factory (range 13) 15311 | -7/Factory | Build established: Scavenger-Mutant 15357 | -7/Factory | Fabricated Flak Gun (x2) 15609 | -7/Factory | Local fabrication network quarantined 15667 | -7/Factory | Entered Lower Caves 15684 | -7/Lower Caves | Encountered a Warlord checkpoint 15989 | -7/Lower Caves | Build established: Scavenger-Skirmisher 16756 | -7/Lower Caves | Discovered new exit (range 8) 16829 | -7/Lower Caves | Identified exit to Lower Caves 16831 | -7/Lower Caves | Entered another Lower Caves area 17294 | -7/Lower Caves | Encountered a Warlord checkpoint 17969 | -7/Lower Caves | Attracted the attention of an 0b10 checkpoint 17971 | -7/Lower Caves | Discovered new exit (range 2) 17973 | -7/Lower Caves | Identified exit to Zion 17976 | -7/Lower Caves | Entered Zion 18111 | -7/Zion | System corruption cleaned by Quarantine Array 18274 | -7/Zion | Build established: Scavenger-Mutant 18320 | -7/Zion | Discovered new exit (range 8) 18773 | -7/Zion | Given A8's code to call for help 19059 | -7/Zion | Found CR-A16's Pointy Stick 19231 | -7/Zion | Learned location of Warlord (-5) 19294 | -7/Zion | Learned Factory emergency access door positions 19447 | -7/Zion | Received a hallucinogenic algorithm 20409 | -7/Zion | Visited the Megawrench Repair Shop 20409 | -7/Zion | Megawrench repaired 11 parts 20469 | -7/Zion | Identified exit to Proximity Caves 20472 | -7/Zion | Entered Proximity Caves 20896 | -6/Proximity Caves | Build established: Scavenger-Skirmisher 21109 | -6/Proximity Caves | Discovered exit to Factory (range 14) 21153 | -6/Proximity Caves | Entered Factory 21153 | -6/Factory | Evolved 2 slots: Utility x1, Weapon x1 21675 | -6/Factory | Discovered new exit (range 5) 21692 | -6/Factory | Identified exit to Lower Caves 22687 | -6/Factory | Fabricated Exp. Sensor Array? 22742 | -6/Factory | Local fabrication network quarantined 22766 | -6/Factory | Discovered new exit (range 12) 22850 | -6/Factory | Identified exit to Factory 22951 | -6/Factory | Discovered new exit (range 12) 23454 | -6/Factory | Sucked down chute 23454 | -6/Factory | Entered Waste 23469 | -6/Waste | EMP discharged 23469 | -6/Waste | System corruption reached 10% 23560 | -6/Waste | Destroyed C-40 Crusher 23569 | -6/Waste | EMP discharged 23582 | -6/Waste | Destroyed C-40 Crusher 23593 | -6/Waste | Destroyed C-40 Crusher 23603 | -6/Waste | Destroyed C-40 Crusher 23610 | -6/Waste | Destroyed C-40 Crusher 23669 | -6/Waste | EMP discharged 23679 | -6/Waste | Destroyed C-40 Crusher 23716 | -6/Waste | Discovered new exit (range 12) 23769 | -6/Waste | EMP discharged 23769 | -6/Waste | System corruption reached 30% 23770 | -6/Waste | Met Warlord forces unprepared to attack 23836 | -6/Waste | Identified exit to Factory 23846 | -6/Waste | Entered Factory 23846 | -6/Factory | Accompanied by 18 allies 24222 | -6/Factory | Identified exit to Extension 24498 | -6/Factory | Spotted B-75 Beast 24507 | -6/Factory | Allies destroyed B-75 Beast 24546 | -6/Factory | First assault squad dispatched 24687 | -6/Factory | Discovered exit to Factory (range 7) 24774 | -6/Factory | Entered Extension 24774 | -6/Extension | Accompanied by 2 allies 25174 | -6/Extension | Rescued a captive Derelict 25175 | -6/Extension | Rescued a captive Derelict 25649 | -6/Extension | Disrupted transfer network 25684 | -6/Extension | Crushed by falling debris 25792 | -6/Extension | Rescued A7 25985 | -6/Extension | Discovered exit to Factory (range 10) 25987 | -6/Extension | Discovered new exit (range 6) 25995 | -6/Extension | Identified exit to Cetus 26005 | -6/Extension | Entered Cetus 26005 | -6/Cetus | Accompanied by 5 allies (A7) 26010 | -6/Cetus | Acquired a Cetus Manufacturing Module code from A7 26036 | -6/Cetus | Spotted Cetus Guard 26036 | -6/Cetus | Spotted Cetus Guard 26039 | -6/Cetus | Destroyed Cetus Guard 26040 | -6/Cetus | Spotted Cetus Guard 26044 | -6/Cetus | Spotted Cetus Guard 26044 | -6/Cetus | Allies destroyed Cetus Guard 26050 | -6/Cetus | Destroyed Cetus Guard 26057 | -6/Cetus | Allies destroyed Cetus Guard 26171 | -6/Cetus | Started Cetus Manufacturing Module 26196 | -6/Cetus | Manufactured an Enhanced Grunt 26221 | -6/Cetus | Manufactured an Enhanced Grunt 26246 | -6/Cetus | Manufactured an Enhanced Grunt 26271 | -6/Cetus | Manufactured an Enhanced Grunt 26296 | -6/Cetus | Manufactured an Enhanced Grunt 26306 | -6/Cetus | Destroyed A7 26307 | -6/Cetus | Extracted ID and sensor layout for unrecognized location from A7's data core 26316 | -6/Cetus | Found Prototype Protection 26377 | -6/Cetus | Discovered new exit (range 15) 26432 | -6/Cetus | Spotted Cetus Guard 26432 | -6/Cetus | Spotted Cetus Guard 26433 | -6/Cetus | Spotted Cetus Guard 26452 | -6/Cetus | Destroyed Cetus Guard 26456 | -6/Cetus | Destroyed Cetus Guard 26457 | -6/Cetus | Spotted Cetus Guard 26466 | -6/Cetus | Destroyed Cetus Guard 26470 | -6/Cetus | Destroyed Cetus Guard 26495 | -6/Cetus | Discovered exit to Factory (range 15) 26503 | -6/Cetus | Met Revision 17 26506 | -6/Cetus | Destroyed Revision 17 26531 | -6/Cetus | Identified Med. Regenerative Plating 26640 | -6/Cetus | Identified exit to Archives 26644 | -6/Cetus | Entered Archives 26912 | -6/Archives | Discovered new exit (range 15) 26934 | -6/Archives | Discovered new exit (range 14) 26969 | -6/Archives | Build established: Scavenger-Gunner 27115 | -6/Archives | Identified exit to Hub_04(d) 27120 | -6/Archives | Entered Hub_04(d) 27279 | -6/Hub_04(d) | Discovered exit to Factory (range 15) 27435 | -6/Hub_04(d) | Garrison activated, responded to threat 28509 | -6/Hub_04(d) | Discovered exit to Factory (range 14) 28568 | -6/Hub_04(d) | Network Hub disabled 28568 | -6/Hub_04(d) | Network Hub disabled 28609 | -6/Hub_04(d) | Spotted Lightning 28614 | -6/Hub_04(d) | Spotted Lightning 28621 | -6/Hub_04(d) | Spotted Lightning 28625 | -6/Hub_04(d) | Spotted Lightning 28627 | -6/Hub_04(d) | Spotted Lightning 28631 | -6/Hub_04(d) | Spotted Lightning 28645 | -6/Hub_04(d) | Entered Factory 28645 | -5/Factory | Evolved 2 slots: Utility x2 28918 | -5/Factory | Build established: Scavenger-Skirmisher 28939 | -5/Factory | Fabricated Imp. Weapon Cycler? 29012 | -5/Factory | Lost 6 parts (1p1n4w) 29030 | -5/Factory | Local fabrication network quarantined 29078 | -5/Factory | Sucked down chute 29078 | -5/Factory | Entered Waste 29079 | -5/Waste | Joined by Warlord forces that had cleared the area 29414 | -5/Waste | Discovered new exit (range 16) 29538 | -5/Waste | Identified exit to Factory 29570 | -5/Waste | Entered Factory 29570 | -5/Factory | Accompanied by 19 allies 29854 | -5/Factory | Repaired Centrium Heavy Treads 29924 | -5/Factory | Repaired Broken Centrium Heavy Treads 30008 | -5/Factory | Repaired Flak Gun 30033 | -5/Factory | Repaired Flak Gun 30181 | -5/Factory | P-70 Sage assimilated allied 0P-KSI(m) 30338 | -5/Factory | Identified exit to Upper Caves 30670 | -5/Factory | Fabricated Flak Gun? 31167 | -5/Factory | Fabricated Flak Gun? 31422 | -5/Factory | Fabricated Flak Gun (x2) 31477 | -5/Factory | Local fabrication network quarantined 31750 | -5/Factory | Entered Upper Caves 31752 | -5/Upper Caves | Attracted the attention of an 0b10 checkpoint 31859 | -5/Upper Caves | Build established: Hacker-Skirmisher 31960 | -5/Upper Caves | Learned Factory garrison access intel 31985 | -5/Upper Caves | Encountered a Warlord checkpoint 32344 | -5/Upper Caves | Discovered new exit (range 15) 32454 | -5/Upper Caves | Identified exit to Upper Caves 32456 | -5/Upper Caves | Entered another Upper Caves area 32512 | -5/Upper Caves | Learned Factory emergency access door positions 32698 | -5/Upper Caves | Spotted B-75 Beast 32706 | -5/Upper Caves | Learned Factory emergency access door positions 32838 | -5/Upper Caves | Discovered new exit (range 15) 32859 | -5/Upper Caves | Identified exit to Warlord 32864 | -5/Upper Caves | Entered Warlord 32917 | -5/Warlord | System corruption cleaned by Quarantine Array 33112 | -5/Warlord | Learned Factory recycling unit intel 33112 | -5/Warlord | Learned Factory garrison access intel 33112 | -5/Warlord | Learned 4 Armory zone layouts 33112 | -5/Warlord | Learned 4 Research zone layouts 33112 | -5/Warlord | Learned Quarantine emergency access door positions 33112 | -5/Warlord | Learned Testing stockpile data 33134 | -5/Warlord | Found Prototype Device 33134 | -5/Warlord | Identified Minesniffer Drone Bay 33208 | -5/Warlord | Found Prototype Hackware 33208 | -5/Warlord | Identified Ghost Barrier 33218 | -5/Warlord | Found Prototype Reactor 33223 | -5/Warlord | Found Prototype Device 33223 | -5/Warlord | Identified Exp. Phase Shifter 33471 | -5/Warlord | Opened side exit 33501 | -5/Warlord | Discovered new exit (range 10) 33513 | -5/Warlord | Identified exit to Proximity Caves 33514 | -5/Warlord | Entered Proximity Caves 33941 | -4/Proximity Caves | Discovered new exit (range 3) 33945 | -4/Proximity Caves | Identified exit to Factory 33980 | -4/Proximity Caves | Entered Factory 33980 | -4/Factory | Evolved 2 slots: Utility x2 33982 | -4/Factory | Loaded intel: 6 recycling unit locations 33983 | -4/Factory | Loaded intel: 4 garrison access locations 34446 | -4/Factory | Destroyed 7 combat bots 34454 | -4/Factory | Discovered new exit (range 15) 34479 | -4/Factory | Local fabrication network quarantined 34491 | -4/Factory | Fabricated Centrium Heavy Treads (x1) 34517 | -4/Factory | First assault squad dispatched 34521 | -4/Factory | Identified exit to Research 34683 | -4/Factory | Discovered new exit (range 15) 34735 | -4/Factory | Identified exit to Upper Caves 34783 | -4/Factory | Repaired Broken Centrium Heavy Treads? 34860 | -4/Factory | Repaired Centrium Heavy Treads 34920 | -4/Factory | Repaired Centrium Heavy Treads 34973 | -4/Factory | Repaired Tri-rail Accelerator 35020 | -4/Factory | Repaired Tri-rail Accelerator 35045 | -4/Factory | Entered Upper Caves 35494 | -4/Upper Caves | Learned location of 1 exit from Research 35796 | -4/Upper Caves | Discovered new exit (range 3) 35799 | -4/Upper Caves | Identified exit to Upper Caves 35801 | -4/Upper Caves | Entered another Upper Caves area 36289 | -4/Upper Caves | Learned location of 1 exit from Research 36367 | -4/Upper Caves | Discovered new exit (range 9) 36382 | -4/Upper Caves | Identified exit to Zhirov 36383 | -4/Upper Caves | Entered Zhirov 36383 | -4/Zhirov | Discovered new exit (range 3) 36412 | -4/Zhirov | Met Zhirov 36441 | -4/Zhirov | Learned location of Quarantine (-3) 36441 | -4/Zhirov | Learned location of Testing (-2) 36441 | -4/Zhirov | Learned location of Command (-1) 36456 | -4/Zhirov | Zhirov requested help retrieving the SGEMP Prototype 36480 | -4/Zhirov | Found Alien Artifact 36480 | -4/Zhirov | Identified Integrated Reactor 36480 | -4/Zhirov | Installed Integrated Reactor, increased core energy generation (+10) 36503 | -4/Zhirov | Found Alien Artifact 36606 | -4/Zhirov | Identified exit to Proximity Caves 36607 | -4/Zhirov | Entered Proximity Caves 37133 | -3/Proximity Caves | Discovered exit to Research (range 2) 37261 | -3/Proximity Caves | Entered Research 37261 | -3/Research | Evolved 2 slots: Utility x2 37262 | -3/Research | Identified exit to Quarantine 37262 | -3/Research | Identified exit to Research 37544 | -3/Research | Found Prototype Launcher 37546 | -3/Research | Identified Tesla Bomb Launcher 37553 | -3/Research | Found Tesla Bomb Launcher 37557 | -3/Research | Found Tesla Bomb Launcher 37577 | -3/Research | Build established: Hacker-Gunner 37733 | -3/Research | Entered Quarantine 37908 | -3/Quarantine | Cryocooling Duct disabled 37923 | -3/Quarantine | Ambient heat levels rising (+20) 37923 | -3/Quarantine | Non-combat units ordered to evacuate 37987 | -3/Quarantine | Cryocooling Duct disabled 38002 | -3/Quarantine | Ambient heat levels rising (+20) 38002 | -3/Quarantine | Combat units ordered to evacuate 38102 | -3/Quarantine | Quarantine Guard activated 38200 | -3/Quarantine | Spotted Quarantine Guard 38210 | -3/Quarantine | Destroyed Quarantine Guard 38273 | -3/Quarantine | Discovered exit to Research (range 15) 38273 | -3/Quarantine | Spotted Quarantine Guard 38302 | -3/Quarantine | Destroyed Quarantine Guard 38411 | -3/Quarantine | Spotted Quarantine Guard 38436 | -3/Quarantine | Destroyed Quarantine Guard 38450 | -3/Quarantine | Identified Transdimensional Reconstructor 38475 | -3/Quarantine | Found Transdimensional Reconstructor 38666 | -3/Quarantine | Spotted Quarantine Guard 38687 | -3/Quarantine | Destroyed Quarantine Guard 38689 | -3/Quarantine | Spotted Quarantine Guard 38693 | -3/Quarantine | Destroyed Quarantine Guard 38901 | -3/Quarantine | Found Alien Artifact 38982 | -3/Quarantine | Spotted Quarantine Guard 38999 | -3/Quarantine | Destroyed Quarantine Guard 39137 | -3/Quarantine | Spotted Quarantine Guard 39151 | -3/Quarantine | Spotted Quarantine Guard 39161 | -3/Quarantine | Destroyed Quarantine Guard 39164 | -3/Quarantine | Destroyed Quarantine Guard 39339 | -3/Quarantine | Identified Core Reset Matrix 39415 | -3/Quarantine | Repaired Tri-rail Accelerator 39470 | -3/Quarantine | Repaired Centrium Heavy Treads 39526 | -3/Quarantine | Repaired Centrium Heavy Treads 39571 | -3/Quarantine | Repaired Tri-rail Accelerator 39733 | -3/Quarantine | Found Alien Impact Weapon 39955 | -3/Quarantine | Found Transdimensional Reconstructor 39957 | -3/Quarantine | Found Transdimensional Reconstructor 39983 | -3/Quarantine | Found Alien Artifact 40009 | -3/Quarantine | Identified Dimensional Node Initializer 40051 | -3/Quarantine | Entered Research 40051 | -2/Research | Evolved 2 slots: Power x1, Utility x1 40052 | -2/Research | Identified exit to Testing 41761 | -2/Research | Repaired Adv. Weapon Cycler 41835 | -2/Research | Repaired Adv. Cooling System 42241 | -2/Research | Repaired Broken Tri-rail Accelerator 42276 | -2/Research | Repaired Tri-rail Accelerator 43012 | -2/Research | Entered Testing 43175 | -2/Testing | Found Prototype Ballistic Gun 43175 | -2/Testing | Identified Hyp. Multirail 43214 | -2/Testing | Spotted PX-OC22F325Q8 43324 | -2/Testing | Destroyed PX-OC22F325Q8 43355 | -2/Testing | Scanned by Researcher 43383 | -2/Testing | Garrison activated, responded to threat 43568 | -2/Testing | System corruption reached 10% 44389 | -2/Testing | Spotted Striker 44392 | -2/Testing | Spotted Striker 44594 | -2/Testing | Warped through subspace 44750 | -2/Testing | Lost 3 parts (1p2w) 45196 | -2/Testing | Found Prototype Energy Cannon 45198 | -2/Testing | Identified Cld. Nova Cannon 45227 | -2/Testing | Discovered new exit (range 10) 45262 | -2/Testing | First assault squad dispatched 45311 | -2/Testing | Found Prototype Energy Gun 45311 | -2/Testing | Identified Warp Gun 45313 | -2/Testing | Lost 4 parts (1p1n1u1w) 45320 | -2/Testing | Destroyed 7 combat bots 45528 | -2/Testing | Found Prototype Energy Cannon 45528 | -2/Testing | Identified Disintegrator 45603 | -2/Testing | Found Ghost Barrier 45859 | -2/Testing | Found Prototype Energy Cannon 45860 | -2/Testing | Identified Null Cannon 46001 | -2/Testing | Repaired Broken Tri-rail Accelerator 46160 | -2/Testing | Build established: Scavenger-Mutant 46398 | -2/Testing | Identified Core Stripper 46429 | -2/Testing | Spotted Fortress 46545 | -2/Testing | Destroyed Fortress 46552 | -2/Testing | Found Prototype Device 46552 | -2/Testing | Identified Exp. Force Field 46560 | -2/Testing | Found Prototype Reactor 46560 | -2/Testing | Identified Vortex Chain Reactor (x2) 46592 | -2/Testing | Found Prototype Protection 46592 | -2/Testing | Identified Centrium Heavy Armor Plating 46612 | -2/Testing | Found Prototype Device 46612 | -2/Testing | Identified Thermal Barrier 46636 | -2/Testing | Found Prototype Device 46636 | -2/Testing | Identified EM Dispersion Field 46850 | -2/Testing | Discovered new exit (range 6) 46855 | -2/Testing | Build established: Hacker-Mutant 46860 | -2/Testing | Identified exit to Section 7 46867 | -2/Testing | Entered Section 7 46867 | -2/Section 7 | Accompanied by 1 ally 46928 | -2/Section 7 | Identified exit to Access 47444 | -2/Section 7 | Destroyed 8 combat bots 47637 | -2/Section 7 | Found Core Reset Matrix 47638 | -2/Section 7 | Used Core Reset Matrix 47642 | -2/Section 7 | Sensed 15 artifacts in vicinity 47648 | -2/Section 7 | First assault squad dispatched 47665 | -2/Section 7 | Warped through subspace 47675 | -2/Section 7 | Spotted B-90 Cyclops 47952 | -2/Section 7 | Discovered exit to Access (range 4) 47959 | -2/Section 7 | Initialized slip node 48065 | -2/Section 7 | Spotted Executioner 48065 | -2/Section 7 | Spotted Executioner 48077 | -2/Section 7 | Destroyed Executioner 48151 | -2/Section 7 | Destroyed Executioner 48156 | -2/Section 7 | Found Prototype Processor 48452 | -2/Section 7 | Found Transdimensional Reconstructor 48455 | -2/Section 7 | Found Transdimensional Reconstructor 48569 | -2/Section 7 | Identified Exp. Core Analyzer 48574 | -2/Section 7 | Spotted Striker 48574 | -2/Section 7 | Spotted Striker 48851 | -2/Section 7 | Found Sigix Quantum Sheargun 49128 | -2/Section 7 | Spotted Executioner 49130 | -2/Section 7 | Spotted Executioner 49134 | -2/Section 7 | Destroyed Executioner 49140 | -2/Section 7 | Destroyed Executioner 49553 | -2/Section 7 | Found Sigix Quantum Sheargun 49557 | -2/Section 7 | Found Sigix Quantum Sheargun 49850 | -2/Section 7 | Found Prototype Device 49850 | -2/Section 7 | Identified Adv. Kinecellerator 49854 | -2/Section 7 | Found Prototype Processor 49854 | -2/Section 7 | Identified Exp. Armor Integrity Analyzer 50052 | -2/Section 7 | Destroyed 9 combat bots 50504 | -2/Section 7 | Found Integrity Redistributor 50550 | -2/Section 7 | Used Integrity Redistributor, redistributed integrity from core (-445) 50551 | -2/Section 7 | Emitted hypermatrix ping 50551 | -2/Section 7 | Core integrity fell below 50% 50556 | -2/Section 7 | Assembled emerged from beneath the floor 50575 | -2/Section 7 | Found Integrated Reactor 50576 | -2/Section 7 | Installed Integrated Reactor, increased core energy generation (+10) 50579 | -2/Section 7 | Warped through subspace to slip node 50627 | -2/Section 7 | Entered Access 50627 | -1/Access | Evolved 2 slots: Power x1, Utility x1 50778 | -1/Access | Spotted B-99 Colossus 51026 | -1/Access | Destroyed 8 combat bots 51159 | -1/Access | First assault squad dispatched 51257 | -1/Access | Crushed by falling debris 51557 | -1/Access | Discovered new exit (range 8) 51573 | -1/Access | Identified exit to Command 51579 | -1/Access | Entered Command 51597 | -1/Command | Build established: Generator-Gunner 51856 | -1/Command | First assault squad dispatched 51881 | -1/Command | Destroyed 7 combat bots 51895 | -1/Command | System corruption reached 10% 52061 | -1/Command | Build established: Scavenger-Gunner 52200 | -1/Command | Destroyed 7 combat bots 52733 | -1/Command | Destroyed 7 combat bots 53480 | -1/Command | Destroyed 7 combat bots 53590 | -1/Command | Build established: Generator-Mutant 53757 | -1/Command | Destroyed 8 combat bots 54980 | -1/Command | Destroyed 7 combat bots 55237 | -1/Command | High security lockdown imminent 55317 | -1/Command | High security lockdown engaged 55502 | -1/Command | Destroyed 17 combat bots 55530 | -1/Command | Spotted Executioner 55530 | -1/Command | Destroyed Executioner 55559 | -1/Command | Spotted Investigator 55561 | -1/Command | Destroyed Investigator 55587 | -1/Command | Destroyed 16 combat bots 55686 | -1/Command | Destroyed Striker 55688 | -1/Command | Destroyed Striker 55691 | -1/Command | Destroyed Executioner 55693 | -1/Command | Spotted Executioner 55697 | -1/Command | Destroyed Executioner 55718 | -1/Command | Destroyed 12 combat bots 55763 | -1/Command | Destroyed 13 combat bots 55925 | -1/Command | Spotted Executioner 55933 | -1/Command | Destroyed Executioner 56958 | -1/Command | Spotted M Guard 56959 | -1/Command | Spotted M Guard 56960 | -1/Command | Spotted Combat Programmer 56960 | -1/Command | Spotted Combat Programmer 56973 | -1/Command | Destroyed M Guard 56980 | -1/Command | Destroyed M Guard 56998 | -1/Command | Destroyed Combat Programmer 57020 | -1/Command | Destroyed Combat Programmer 57020 | -1/Command | All MAIN.C guards destroyed 57054 | -1/Command | Found Corrupted Prototype Protection 57054 | -1/Command | Identified Hvy. Regenerative Plating 57058 | -1/Command | Found Corrupted Prototype Reactor 57058 | -1/Command | Identified Zero-point Reactor 57059 | -1/Command | System corruption reached 30% 57065 | -1/Command | Found Corrupted Zero-point Reactor 57072 | -1/Command | Found Corrupted Zero-point Reactor 57076 | -1/Command | Found Corrupted Prototype Device 57076 | -1/Command | Identified AEGIS Remote Shield 57083 | -1/Command | Found Corrupted AEGIS Remote Shield 57090 | -1/Command | Found Corrupted Zero-point Reactor 57094 | -1/Command | Found Corrupted Cld. Nova Cannon 57129 | -1/Command | Found Prototype Device 57129 | -1/Command | Identified Exp. Focal Shield 57133 | -1/Command | Found Prototype Processor 57133 | -1/Command | Identified Exp. Target Analyzer 57535 | -1/Command | Build established: Scavenger-Gunner 57648 | -1/Command | Found Prototype Launcher 57648 | -1/Command | Identified Mni. Smartbomb Launcher 57907 | -1/Command | Found Prototype Device 57907 | -1/Command | Identified Exp. Focal Shield 58043 | -1/Command | Build established: Scavenger-Mutant 58940 | -1/Command | Found Prototype Device 58940 | -1/Command | Identified Thermal Barrier 59042 | -1/Command | Phase Generator disabled 59191 | -1/Command | Found Unknown Device 59191 | -1/Command | Identified Antimissile System 60649 | -1/Command | Found Prototype Device 60649 | -1/Command | Identified Exp. Shock Absorption System 61311 | -1/Command | Build established: Scavenger-Gunner 61601 | -1/Command | Met MAIN.C 61612 | -1/Command | Destroyed MAIN.C Shell 61612 | -1/Command | 0b10 Conduit disabled 61615 | -1/Command | MAIN.C activated Command garrisons 61768 | -1/Command | Core integrity fell below 50% 61771 | -1/Command | Self-destructed Last Messages --------------- 61750_ Integrated Corrupted AEGIS Remote Shield (+3). 61751_ Slug penetrates P-80 Master. 61753_ System corrupted: Matter fused (-7). 61755_ Adv. Cooling System destroyed. 61758_ AEGIS Remote Shield blasted off. 61758_ Slug penetrates MAIN.C. 61759_ Acquired 180 matter. 61761_ Imp. Overload Amplifier destroyed. 61761_ Penetrated by Slug. 61763_ Slug penetrates 0b10 Conduit. 61763_ Penetrated by Slug. 61767_ Centrium Heavy Treads destroyed. 61768_ System corrupted: Energy discharge (-268). 61768_ Slug penetrates Reinforced Barrier. 61768_ Slug penetrates 0b10 Conduit. 61768_ Penetrated by Slug. 61768_ Slug penetrates 0b10 Conduit. 61771_ Null Cannon destroyed. 61771_ Zero-point Reactor destroyed. 61771_ Critical hit (Blast). Map ----- +----------------------------------------------------+ | ?????????????????????????????????????????????????? | | ?????????????????????????????????????????????????? | | ?????????????????????????????????????????????????? | | ?????????????????????????????????????????????????? | | ?????????????????????????????????????????????????? | | ?????????????????????????????????????????????????? | | ?????????????????????????????????????????????????? | | ?????????????????????????????????????????????????? | | ?????????????????????????????????????????????????? | | ?????????????????????????????#############???????? | | ??????????????????????????? """" #???????? | | ??????????????????????????? "" #???????? | | ???????????????????#"""??? "" ######### | | ????????????????????""""?"""""" +!%% | | ????????????????????" " """ + %% | | ???????????????????#"" """""" + % | | ???????????????????#"" """""" ######### | | ???????????????????# " """""" %% h #???????? | | ???????????????????# " " Mg h %#???????? | | ???????????????????# " p ""#???????? | | ???????????????????#""""" %! """"#???????? | | ???????????????????#"" """""#???????? | | ???????????????????# """"""""#???????? | | ???????????????????# " " " #???????? | | ???????????????????# " " " " #???????? | | ???????????????????" % @ " " """" " #???????? | | ???????????????????" % "" " " """" #???????? | | ???????????????????" " " " " ????????? | | ???????????????????# " """""""" "???????????? | | ???????????????????# """ " """""???????????? | | ???????????????????# """ " " ????????????? | | ???????????????????###############???????????????? | | ?????????????????????????????????????????????????? | | ?????????????????????????????????????????????????? | | ?????????????????????????????????????????????????? | | ?????????????????????????????????????????????????? | | ?????????????????????????????????????????????????? | | ?????????????????????????????????????????????????? | | ?????????????????????????????????????????????????? | | ?????????????????????????????????????????????????? | | ?????????????????????????????????????????????????? | | ?????????????????????????????????????????????????? | | ?????????????????????????????????????????????????? | | ?????????????????????????????????????????????????? | | ?????????????????????????????????????????????????? | | ?????????????????????????????????????????????????? | | ?????????????????????????????????????????????????? | | ?????????????????????????????????????????????????? | | ?????????????????????????????????????????????????? | | ?????????????????????????????????????????????????? | +----------------------------------------------------+ Best States ------------- Heat Dissipation 211 Energy Generation 118 Energy Capacity 1550 Matter Stores 300 Matter Capacity 300 Sight Range 16 Robot Scan Range 20 Terrain Scan Density 10 Jamming Range 14 Power Amplification 20 Armor Coverage 1200 Resistance: EM 75 Weapon Shielding 66 Thermal Conversion 90 Weapon Cycling 25 Evasion (%) 50 Targeting Accuracy 16 Target Analysis 10 Core Analysis 15 Armor Integrity Analysis 50 Recoil Reduction 4 Overload Amplification 75 Offensive Hacking 38 Defensive Hacking 32 Item Schematics ----------------- None Robot Schematics ------------------ None Fabricated ------------ Exp. Sensor Array | x1 | -7/Factory Armor Integrity Analyzer | x1 | -7/Factory Flak Gun | x2 | -7/Factory Exp. Sensor Array | x1 | -6/Factory Imp. Weapon Cycler | x2 | -5/Factory Flak Gun | x2 | -5/Factory Flak Gun | x2 | -5/Factory Flak Gun | x2 | -5/Factory Centrium Heavy Treads | x1 | -4/Factory Alien Tech Used ----------------- Integrated Reactor Transdimensional Reconstructor Core Stripper Core Reset Matrix Dimensional Node Initializer Sigix Quantum Sheargun Integrity Redistributor Achievements -------------- None Challenges ------------ None Game ------ Seed ForcePoweredNanovents Manual? 0 Play Time 05:45:32 Cumulative 1227.5 hours Start 2021.05.28 @ 14:34:58 End 2021.05.30 @ 19:17:29 Sessions 3 Manual Loads 0 Difficulty Rogue Special Mode None Game No. 414 Rogue 414 Adventurer 0 Explorer 0 Win Type - Total 89 Types 18/12/37/5/1/2/12/1/1 Lore% 97 Gallery% 96 Achievement% 85 Wizard Run 0 Options --------- ASCII 0 Keyboard 0 Movement Numpad Keybinds 0 Fullscreen 1 Font 18/SmallcapsGlow Map View 76x50 Tactical HUD 1 Map Filters NONE Filters NONE Steam 1 RUN: 523c23b0-8426-4344-9cff-c7f0e267b7a4